Workbook

Sheet Hoja1
B1: 2015-04-01
A3: Aceite | B3: Descripcio | C3: Marca | D3: Barras | E3: Und | F3: Factor | G3: cantidad | H3: Total | I3: Costo | J3: Ganancia | K3: M | N3: TOTAL VENTAS / CATEGORIA | O3: abr-15 | P3: may-15 | Q3: jun-15 | R3: jul-15 | S3: ago-15 | T3: sept-15 | U3: oct-15 | V3: nov-15 | W3: dic-15 | X3: ene-16 | Y3: feb-16 | Z3: mar-16 | AA3: abr-16
A4: A Oliv
A5: 267 | B5: ACEITUNA NEGRA ENTERA BOLSA 1KG IMPRESO OLIVALLE | D5: 7752100001267 | E5: UND | F5: 1 | G5: 5 | H5: 85 | I5: 46.15 | J5: 38.85 | K5: S | N5: Aceite | O5: =47 -> 47 | P5: 71 | Q5: 87 | R5: 103 | S5: 113 | T5: 121 | U5: 163 | V5: 137 | W5: 128 | X5: 95 | Y5: 94 | Z5: 88 | AA5: 118
A6: 271 | B6: ACEITE DE OLIVA VIRGEN OLIVALLE PET REDONDO CRISTAL 500ML | D6: 7752100001397 | E6: UND | F6: 1 | G6: 1 | H6: 15.5 | I6: 10.71 | J6: 4.79 | K6: S | N6: Aceitunas | O6: =G37+G5 -> 22 | P6: 19 | Q6: 20 | R6: 26 | S6: 51 | T6: 25 | U6: 30 | V6: 16 | W6: 21 | X6: 27 | Y6: 15 | Z6: 37 | AA6: 64
A7: 272 | B7: ACEITE DE OLIVA EXTRA VIRGEN OLIVALLE PET REDONDO VERDE 2 | D7: 7752100001410 | E7: UND | F7: 1 | G7: 1 | H7: 7.5 | I7: 4.87 | J7: 2.63 | K7: S | N7: Agua | O7: =G51 -> 207 | P7: 344 | Q7: 363 | R7: 344 | S7: 312 | T7: 422 | U7: 573 | V7: 417 | W7: 463 | X7: 506 | Y7: 629 | Z7: 545 | AA7: 442
A8: 273 | B8: ACEITE DE OLIVA EXTRA VIRGEN OLIVALLE PET REDONDO VERDE BOTE | D8: 7752100001427 | E8: UND | F8: 1 | G8: 1 | H8: 16.5 | I8: 11.73 | J8: 4.77 | K8: S | N8: AGUARD | Q8: 1 | R8: ? | S8: ? | T8: ? | U8: ? | V8: ? | W8: ? | X8: ? | Y8: ? | Z8: ? | AA8: ?
G9: 8 | H9: 124.5 | I9: 73.46 | J9: 51.04 | K9: 0 | L9: 0 | N9: Algarr | O9: 6 | P9: 10 | Q9: 6 | R9: 22 | S9: 17 | T9: 16 | U9: 16 | V9: 16 | W9: 18 | X9: 11 | Y9: 9 | Z9: 18 | AA9: 14
A10: Aceite | N10: Arroz | O10: 29 | P10: 39 | Q10: 97 | R10: 74 | S10: 80 | T10: 98 | U10: 80 | V10: 62 | W10: 31 | X10: 35 | Y10: 22 | Z10: 33 | AA10: 39
A11: 126 | B11: ACEITE DE COCO ORGANICO 140ML | C11: CANDEL | D11: 7750148000327 | E11: FRA | F11: 1 | G11: 7 | H11: 105 | I11: 70 | J11: 35 | K11: S | N11: Artesa | O11: 53 | P11: 199 | Q11: 184 | R11: 158 | S11: 120 | T11: 145 | U11: 159 | V11: 190 | W11: 253 | X11: 88 | Y11: 35 | Z11: 60 | AA11: 63
A12: 151 | B12: ACEITE PURO DE OLIVA BOTELLA VIDRIO 500ML | C12: OLIVOS | D12: 7750262554843 | E12: UND | F12: 1 | G12: 6 | H12: 102 | I12: 74.52 | J12: 27.48 | K12: S | N12: Atun | O12: 26 | P12: 82 | Q12: 61 | R12: 64 | S12: 42 | T12: 69 | U12: 91 | V12: 54 | W12: 26 | X12: 24 | Y12: 8 | Z12: 24 | AA12: 21
A13: 544 | B13: ACEITE IDEAL DE GIRASOL 1L | D13: 7790070219374 | E13: UND | F13: 1 | G13: 6 | H13: 44.9 | I13: 34.14 | J13: 10.76 | K13: S | N13: Azucar | O13: 11 | P13: 35 | Q13: 32 | R13: 51 | S13: 44 | T13: 4 | U13: 15 | V13: 13 | W13: 16 | X13: 13 | Y13: 9 | Z13: 13 | AA13: 21
A14: 136 | B14: Aceite de Oliva Extra Virgen Premium 250ml | C14: OLIVOS | D14: 7750262000210 | E14: UND | F14: 1 | G14: 5 | H14: 55 | I14: 40.5 | J14: 14.5 | K14: S | N14: BARRAE | P14: 1 | Q14: ? | R14: 31 | S14: 10 | T14: 62 | U14: 54 | V14: 39 | W14: 9 | X14: 10 | Y14: 1 | Z14: 21 | AA14: 30
A15: 127 | B15: Aceite de Coco Organico 450ml | C15: CANDEL | D15: 7750148000334 | E15: FRA | F15: 1 | G15: 3 | H15: 123 | I15: 90 | J15: 33 | K15: S | N15: Beb Na | O15: 391 | P15: 756 | Q15: 753 | R15: 659 | S15: 775 | T15: 684 | U15: 689 | V15: 603 | W15: 607 | X15: 645 | Y15: 640 | Z15: 744 | AA15: 789
A16: 133 | B16: Aceite Primor botella de plastico 1L | D16: 7750243042949 | E16: UND | F16: 1 | G16: 2 | H16: 15.4 | I16: 11.88 | J16: 3.52 | K16: S | N16: Bisute | Q16: 2 | R16: 0 | S16: 0 | T16: 0 | U16: 0 | V16: 1 | W16: 0 | X16: 5 | Y16: ? | Z16: 10 | AA16: 3
A17: 147 | B17: BOTELLA DE ACEITE DE SACHA INCHI EXTRA VIRGEN PREMIUM BOTELL | D17: 7750262001064 | E17: UND | F17: 1 | G17: 2 | H17: 44 | I17: 31.88 | J17: 12.12 | K17: S | N17: Bebida | O17: 35 | P17: 93 | Q17: ? | R17: ? | S17: ? | T17: ? | U17: ? | V17: ? | W17: ? | X17: ? | Y17: ? | Z17: ? | AA17: ?
A18: 149 | B18: ACEITE DE OLIVA VIRGEN BOTELLA VIDRIO 200ML | C18: OLIVOS | D18: 7750262281701 | E18: UND | F18: 1 | G18: 2 | H18: 16 | I18: 11.78 | J18: 4.22 | K18: S | N18: BOLSAS | P18: 15 | Q18: 37 | R18: 32 | S18: 28 | T18: 20 | U18: 33 | V18: 22 | W18: 59 | X18: 7 | Y18: 5 | Z18: 5 | AA18: 8
A19: 150 | B19: Aceite de oliva extra virgen botella vidrio 200ml | C19: OLIVOS | D19: 7750262281718 | E19: UND | F19: 1 | G19: 2 | H19: 19 | I19: 14.16 | J19: 4.84 | K19: S | N19: CACAO | Q19: 16 | R19: 30 | S19: 22 | T19: 27 | U19: 30 | V19: 46 | W19: 45 | X19: 30 | Y19: 22 | Z19: 21 | AA19: 14
A20: 152 | B20: Aceite de Sacha Inchi Extra Virgen botella vidrio 250ml | C20: OLIVOS | D20: 7750262633098 | E20: UND | F20: 1 | G20: 1 | H20: 22 | I20: 26.17 | J20: -4.17 | K20: S | N20: Café | O20: 16 | P20: 75 | Q20: 91 | R20: 189 | S20: 207 | T20: 144 | U20: 104 | V20: 115 | W20: 114 | X20: 58 | Y20: 54 | Z20: 69 | AA20: 87
A21: 145 | B21: Aceite de oliva clasico botella plastico 450ml | C21: OLIVOS | D21: 7750262001040 | E21: UND | F21: 1 | G21: 1 | H21: 13.5 | I21: 10.12 | J21: 3.38 | K21: S | N21: CANAST | W21: 5 | X21: ? | Y21: ? | Z21: ? | AA21: 5
A22: 141 | B22: ACEITE DE OLIVA CLASICO 200ML | C22: OLIVOS | D22: 7750262000852 | E22: UND | F22: 1 | G22: 1 | H22: 7 | I22: 5.14 | J22: 1.86 | K22: S | N22: CAJA | S22: 1 | T22: ? | U22: ? | V22: ? | W22: ? | X22: ? | Y22: ? | Z22: ? | AA22: ?
A23: 1203 | B23: ACEITE OLIVA KIDS EXTRA VIRGEN 250ML | C23: OLIVOS | D23: 7750262001088 | E23: UND | F23: 1 | G23: 1 | H23: 23.5 | I23: 14.33 | J23: 9.17 | K23: S | N23: CARBON | Q23: 1 | R23: 2 | S23: 4 | T23: 2 | U23: 1 | V23: 1 | W23: 2 | X23: 4 | Y23: 2 | Z23: 1 | AA23: 1
A24: 554 | B24: ACEITE DE OLIVA VIRGEN BOTELLA VIDRIO 125ML | E24: UND | F24: 1 | G24: 1 | H24: 6 | I24: 3.73 | J24: 2.27 | K24: S | N24: Carne | O24: 24.06 | P24: 52.91 | Q24: 22.87 | R24: 25.42 | S24: 50.24 | T24: 27.84 | U24: 1.7 | V24: 0 | W24: 7.48 | X24: 0 | Y24: 0 | Z24: 0 | AA24: ?
A25: 555 | B25: ACEITE DE AJONJOLI 125ML | E25: UND | F25: 1 | G25: 1 | H25: 6.8 | I25: 4.6 | J25: 2.2 | K25: S | N25: Cereal | O25: 27 | P25: 48 | Q25: 78 | R25: 202 | S25: 188 | T25: 138 | U25: 136 | V25: 130 | W25: 86 | X25: 117 | Y25: 124 | Z25: 144 | AA25: 121
A26: 556 | B26: ACEITE DE OLIVA EXTRA VIRGEN BOTELLA VIDRIO 125ML | E26: UND | F26: 1 | G26: 1 | H26: 5 | I26: 4.14 | J26: 0.86 | K26: S | N26: Cerv (A+R) | O26: 109 | P26: 231 | Q26: 305 | R26: 280 | S26: 347 | T26: 470 | U26: 609 | V26: 438 | W26: 696 | X26: 400 | Y26: 447 | Z26: 380 | AA26: 398
A27: 557 | B27: Aceite puro de oliva botella vidrio 125ml | E27: UND | F27: 1 | G27: 1 | H27: 6 | I27: 3.31 | J27: 2.69 | K27: S | N27: Chanca | O27: 1 | P27: 3 | Q27: 1 | R27: 1 | S27: ? | T27: ? | U27: ? | V27: ? | W27: ? | X27: ? | Y27: ? | AA27: ?
A28: 850 | B28: ACEITE PRIMOR PREMIUN 1L | D28: 7750243042963 | E28: UND | F28: 1 | G28: 1 | H28: 8.3 | I28: 6.5 | J28: 1.8 | K28: S | N28: Chia | O28: 2 | P28: ? | Q28: ? | R28: ? | S28: ? | T28: ? | U28: ? | V28: ? | W28: ? | X28: ? | Y28: ? | AA28: ?
G29: 47 | H29: 622.4 | I29: 456.9 | J29: 165.5 | K29: 0 | L29: 0 | N29: Choco | O29: 232 | P29: 461 | Q29: 2 | R29: ? | S29: ? | T29: ? | U29: ? | V29: ? | W29: ? | X29: ? | Y29: ? | Z29: ? | AA29: ?
A30: Aceitu | N30: Chocol | O30: 33 | P30: 258 | Q30: 888 | R30: 1272 | S30: 1337 | T30: 1156 | U30: 1364 | V30: 1188 | W30: 1250 | X30: 618 | Y30: 544 | Z30: 539 | AA30: 582
N31: Chuño | O31: 2 | P31: 4 | Q31: 4 | R31: 0 | S31: 0 | T31: 0 | U31: 3 | V31: 6 | W31: 2 | X31: ? | Y31: ? | Z31: ? | AA31: ?
A32: 264 | B32: ACEITUNA NEGRA ENTERA DOY PACK 180G IMPRESO OLIVALLE | D32: 7752100001083 | E32: UND | F32: 1 | G32: 6 | H32: 14.4 | I32: 7.98 | J32: 6.42 | K32: S | N32: Coctel | O32: 3 | P32: 4 | Q32: ? | R32: ? | S32: ? | T32: ? | U32: ? | V32: ? | W32: ? | X32: ? | Y32: ? | Z32: ? | AA32: ?
A33: 266 | B33: Aceituna Verde Rellena con Rocoto Doy Pack 100g | D33: 7752100001106 | E33: UND | F33: 1 | G33: 4 | H33: 10.8 | I33: 8.32 | J33: 2.48 | K33: S | N33: Colage | P33: 2 | Q33: 14 | R33: 15 | S33: 5 | T33: 8 | U33: 12 | V33: 0 | W33: ? | X33: ? | Y33: ? | Z33: ? | AA33: ?
A34: 265 | B34: ACEITUNA VERDE DESHUESADA DOY PACK 80G IMPRESO OLIVALLE | D34: 7752100001090 | E34: UND | F34: 1 | G34: 3 | H34: 6 | I34: 4.44 | J34: 1.56 | K34: S | N34: Comple | O34: 142 | P34: 399 | Q34: 478 | R34: 553 | S34: 583 | T34: 539 | U34: 669 | V34: 653 | W34: 479 | X34: 549 | Y34: 575 | Z34: 614 | AA34: 658
A35: 263 | B35: Aceituna Verde Rellena con Pimiento Doy Pack 100g | D35: 7752100001076 | E35: UND | F35: 1 | G35: 3 | H35: 8.1 | I35: 6.24 | J35: 1.86 | K35: S | N35: Condim | O35: 11 | P35: 23 | Q35: 18 | R35: 23 | S35: 11 | T35: ? | U35: ? | V35: ? | W35: ? | X35: ? | Y35: ? | Z35: ? | AA35: ?
A36: 262 | B36: ACEITUNA NEGRA BOTIJA EXTRA F364 TN CALE | D36: 7752100000727 | E36: UND | F36: 1 | G36: 1 | H36: 4.5 | I36: 3.4 | J36: 1.1 | K36: S | N36: Conserv | O36: 10 | P36: 28 | Q36: 26 | R36: 36 | S36: 56 | T36: 20 | U36: 14 | V36: 21 | W36: 26 | X36: 17 | Y36: 12 | Z36: 30 | AA36: 38
G37: 17 | H37: 43.8 | I37: 30.38 | J37: 13.42 | K37: 0 | L37: 0 | N37: CUIDAD | Q37: 2 | R37: 3 | S37: ? | T37: ? | U37: ? | V37: ? | W37: ? | X37: ? | Y37: ? | Z37: ? | AA37: ?
A38: Agua | N38: D'GUS | Q38: 12.45 | R38: ? | S38: ? | T38: ? | U38: ? | V38: ? | W38: ? | X38: ? | Y38: ? | Z38: ? | AA38: ?
A39: 8 | B39: AGUA SAN MATEO SIN GAS 600ML | D39: 77530967 | E39: UND | F39: 1 | G39: 62 | H39: 90.6 | I39: 66.34 | J39: 24.26 | K39: S | N39: Dulce (R+T) | O39: 88 | P39: 175 | Q39: 34 | R39: 328 | S39: 401 | T39: 377 | U39: 418 | V39: 266 | W39: 249 | X39: 121 | Y39: 111 | Z39: 74 | AA39: 40
A40: 864 | B40: AGUA SAN LUIS SIN GAS 625 ML | D40: 7750182001205 | E40: UND | F40: 1 | G40: 37 | H40: 55.2 | I40: 38.11 | J40: 17.09 | K40: S | N40: Emb re | O40: 21 | P40: ? | Q40: 2 | R40: ? | S40: ? | T40: ? | U40: ? | V40: ? | W40: ? | X40: ? | Y40: ? | Z40: ? | AA40: ?
A41: 9 | B41: AGUA SAN MATEO CON GAS 600ML | D41: 77530974 | E41: UND | F41: 1 | G41: 32 | H41: 47.8 | I41: 34.24 | J41: 13.56 | K41: S | N41: Embuti | O41: 133.24 | P41: 255.12 | Q41: 282.62 | R41: 218.19 | S41: 157.83 | T41: 172.06 | U41: 222.15 | V41: 167.21 | W41: 166.47 | X41: 138.41 | Y41: 117.47 | Z41: 129.54 | AA41: 202.02
A42: 964 | B42: AGUA SOCOSNI C/GAS620 ML | D42: 7755224778213 | E42: UND | F42: 1 | G42: 19 | H42: 33 | I42: 31.92 | J42: 1.08 | K42: S | N42: Encurt | O42: 11 | P42: 23 | Q42: 14 | R42: 19 | S42: 13 | T42: 8 | U42: 4 | V42: 4 | W42: 8 | X42: 2 | Y42: 4 | Z42: 2 | AA42: 3
A43: 166 | B43: AGUA CIELO SIN GAS 625ML | D43: 7750670244954 | E43: UND | F43: 1 | G43: 18 | H43: 21.6 | I43: 11.52 | J43: 10.08 | K43: S | N43: ENSALA | R43: 2 | S43: 2 | T43: 4 | U43: ? | V43: 1 | W43: 2 | X43: 3 | Y43: 6 | Z43: 5 | AA43: 11
A44: 167 | B44: Agua Cielo Sin Gas 2.5L | D44: 7750670313537 | E44: UND | F44: 1 | G44: 13 | H44: 27.3 | I44: 20.54 | J44: 6.76 | K44: S | N44: ESCENC | P44: 5 | Q44: 4 | R44: 5 | S44: 6 | T44: 8 | U44: 7 | V44: 3 | W44: ? | X44: ? | Y44: ? | Z44: ? | AA44: ?
A45: 1107 | B45: AGUA CIELO 1 L | D45: 7750670009041 | E45: UND | F45: 1 | G45: 8 | H45: 16 | I45: 11.36 | J45: 4.64 | K45: S | N45: Especi | O45: 19 | P45: 41 | Q45: 53 | R45: 42 | S45: 81 | T45: 58 | U45: 71 | V45: 47 | W45: 67 | X45: 50 | Y45: 44 | Z45: 38 | AA45: 51
A46: 168 | B46: AGUA CIELO CON GAS 625ML | D46: 7750670336901 | E46: UND | F46: 1 | G46: 7 | H46: 8.4 | I46: 4.2 | J46: 4.2 | K46: S | N46: ESPUMA | P46: 4 | Q46: ? | R46: ? | S46: ? | T46: ? | U46: ? | V46: ? | W46: ? | X46: ? | Y46: ? | Z46: ? | AA46: ?
A47: 863 | B47: AGUA SAN LUIS SIN GAS 2.5 L | D47: 7750298000727 | E47: UND | F47: 1 | G47: 5 | H47: 15 | I47: 12.25 | J47: 2.75 | K47: S | N47: FIDEOS | P47: 35 | Q47: 41 | R47: 29 | S47: 50 | T47: 49 | U47: 58 | V47: 40 | W47: 41 | X47: 27 | Y47: 33 | Z47: 34 | AA47: 39
A48: 871 | B48: SAN MATEO 2.50L | D48: 7753749002295 | E48: UND | F48: 1 | G48: 4 | H48: 16 | I48: 9.4 | J48: 6.6 | K48: S | N48: Filtra | O48: 19 | P48: 35 | Q48: ? | R48: ? | S48: ? | T48: ? | U48: ? | V48: ? | W48: ? | X48: ? | Z48: ? | AB48: INFU
A49: 1145 | B49: SOCOSANI S/GAS 2 L | D49: 7755224220842 | E49: UND | F49: 1 | G49: 1 | H49: 4 | I49: 3.34 | J49: 0.66 | K49: S | N49: Frijol | O49: 1 | P49: 6 | Q49: ? | R49: ? | S49: ? | T49: ? | U49: ? | V49: ? | W49: ? | X49: ? | Z49: ? | AB49: COMPL
A50: 1146 | B50: SOCOSANI C/GAS 2 L | D50: 7755224135931 | E50: UND | F50: 1 | G50: 1 | H50: 4 | I50: 3.34 | J50: 0.66 | K50: S | N50: Frutas | O50: 560.1 | P50: 599.89 | Q50: 1019.61 | R50: =18+1073.55 -> 1091.55 | S50: =121+811.94 -> 932.94 | T50: =195+830.27 -> 1025.27 | U50: =184+887.54 -> 1071.54 | V50: =184+918.47 -> 1102.47 | W50: =131+635.2 -> 766.2 | X50: =80+626.8 -> 706.8 | Y50: =87+544.01 -> 631.01 | Z50: =60+580.1 -> 640.1 | AA50: =98+609.63 -> 707.63
G51: 207 | H51: 338.9 | I51: 246.56 | J51: 92.34 | K51: 0 | L51: 0 | N51: FUXION | S51: 4 | T51: 26 | U51: 5 | V51: 3 | W51: 1 | X51: 2 | Y51: 5 | Z51: 8 | AA51: 2
A52: Algarr | N52: GALLE | P52: 53 | Q52: 856 | R52: 823 | S52: 1207 | T52: 1208 | U52: 1203 | V52: 1076 | W52: 867 | X52: 609 | Y52: 663 | Z52: 707 | AA52: 915
A53: 322 | B53: ALGARROBINA CRICKETS 500G | C53: CRICKE | D53: 7753466000048 | E53: UND | F53: 1 | G53: 3 | H53: 30 | I53: 21.24 | J53: 8.76 | K53: S | N53: Gallet | O53: 151 | P53: 526 | Q53: ? | R53: ? | S53: ? | T53: ? | U53: ? | V53: ? | W53: ? | X53: ? | Z53: ? | AA53: ? | AB53: GALLET
A54: 153 | B54: ALGARROBINA BOTELLA DE PLASTICO 500G | D54: 7750262979295 | E54: UND | F54: 1 | G54: 2 | H54: 20 | I54: 14.16 | J54: 5.84 | K54: S | N54: Gaseos | O54: 298 | P54: 861 | Q54: 778 | R54: 691 | S54: 516 | T54: 570 | U54: 632 | V54: 506 | W54: 567 | X54: 516 | Y54: 579 | Z54: 575 | AA54: 624
A55: 323 | B55: ALGARROBINA CRICKETS 300G | C55: CRICKE | D55: 7753466000079 | E55: UND | F55: 1 | G55: 1 | H55: 6.5 | I55: 4.66 | J55: 1.84 | K55: S | N55: GELATI | P55: 3 | Q55: 5 | R55: 3 | S55: 11 | T55: 16 | U55: 8 | V55: 2 | W55: 0 | X55: 0 | Y55: 16 | Z55: 11 | AA55: 72
G56: 6 | H56: 56.5 | I56: 40.06 | J56: 16.44 | K56: 0 | L56: 0 | N56: GIANIN | Q56: 213 | R56: 274 | S56: 205 | T56: 83 | U56: 126 | V56: 94 | W56: 93 | X56: 23 | Y56: 151 | Z56: 143 | AA56: 90
A57: Arroz | N57: Golosi | O57: 216 | P57: 287 | Q57: 105 | R57: 124 | S57: 139 | T57: 233 | U57: 228 | V57: 91 | W57: 50 | X57: 52 | Y57: 37 | Z57: 30 | AA57: 43
A58: 415 | B58: ARROZ EXTRA COSTEÑO 750G | D58: 7755139161759 | E58: UND | F58: 1 | G58: 19 | H58: 61.6 | I58: 51.3 | J58: 10.3 | K58: S | N58: Gr Arr | P58: 10.71 | Q58: 0 | R58: 11.64 | S58: ? | T58: ? | U58: ? | V58: ? | W58: ? | X58: ? | Y58: ? | Z58: ? | AB58: GR A R
A59: 46 | B59: ARROZ EXTRA MEJORADO VALLE DEL NORTE PAQUETE 750 GR | D59: 7750039057225 | E59: UND | F59: 1 | G59: 4 | H59: 13.2 | I59: 10 | J59: 3.2 | K59: S | N59: Gran A+R | O59: 38.44 | P59: 35 | Q59: 46 | R59: 49 | S59: 67 | T59: 41 | U59: 35 | V59: 44 | W59: 28 | X59: 22 | Y59: 14 | Z59: 21 | AA59: 19
A60: 416 | B60: ARROZ SUPERIOR COSTEÑO 750G | D60: 7755139965326 | E60: UND | F60: 1 | G60: 3 | H60: 10.8 | I60: 6.99 | J60: 3.81 | K60: S | N60: Granol | O60: 3 | P60: 29 | Q60: 46 | R60: 54 | S60: 60 | T60: 83 | U60: 68 | V60: 72 | W60: 66 | X60: 52 | Y60: 63 | Z60: 84 | AA60: 162
A61: 413 | B61: ARROZ EXTRA HOJA REDONDA PAQUETE 750 GR | D61: 7755139000171 | E61: UND | F61: 1 | G61: 2 | H61: 6.3 | I61: 5 | J61: 1.3 | K61: S | N61: Harina | Q61: 5 | R61: 10 | S61: 26 | T61: 17 | U61: 12 | V61: 14 | W61: 9 | X61: 18 | Y61: 16 | Z61: 7 | AA61: 17
A62: 383 | B62: ARROZ SUPER EXTRA PAQUETE 750 GR | D62: 7754294000071 | E62: UND | F62: 1 | G62: 1 | H62: 3.6 | I62: 2.55 | J62: 1.05 | K62: S | N62: Helado | O62: 78 | P62: 493 | Q62: 596 | R62: 632 | S62: 723 | T62: 664 | U62: 1038 | V62: 933 | W62: 1028 | X62: 2186 | Y62: 2013 | Z62: 1989 | AA62: 1620
G63: 29 | H63: 95.5 | I63: 75.84 | J63: 19.66 | K63: 0 | L63: 0 | N63: HIELO | S63: 7 | T63: 9 | U63: 7 | V63: 14 | W63: 0 | X63: 0 | Y63: 0 | Z63: 0 | AA63: ?
A64: Artesa | N64: Hongos | P64: 1 | Q64: 0 | R64: 0 | S64: 0 | T64: 0 | U64: 2 | V64: 4 | W64: 1 | X64: 1 | Y64: 0 | Z64: 1 | AA64: ?
A65: 967 | B65: ARTESANIA CON MENSAJE | E65: UND | F65: 1 | G65: 16 | H65: 80 | I65: 64 | J65: 16 | K65: S | N65: Huevo | O65: 12.12 | P65: 36.84 | Q65: 59.22 | R65: 84.97 | S65: 93 | T65: 103 | U65: 81 | V65: 76 | W65: 49 | X65: 51 | Y65: 60 | Z65: 70 | AA65: 66
A66: 982 | B66: PULSERA | E66: UND | F66: 1 | G66: 6 | H66: 15 | I66: 0 | J66: 15 | K66: S | N66: INFUSI | V66: 42 | W66: 121 | X66: 48 | Y66: 84 | Z66: 93 | AA66: 108
A67: 982 | B67: PULSERAS | E67: UND | F67: 1 | G67: 2 | H67: 5 | I67: 0 | J67: 5 | K67: S | N67: Instan | O67: 9 | P67: 32 | Q67: 28 | R67: 25 | S67: 27 | T67: 11 | U67: 13 | V67: 5 | W67: 9 | X67: 2 | Y67: ? | Z67: ? | AA67: ?
A68: 983 | B68: PULSERA BOLITA MANTA | E68: UND | F68: 1 | G68: 2 | H68: 10 | I68: 4.32 | J68: 5.68 | K68: S | N68: Jalea | P68: 1 | Q68: ? | R68: 1 | S68: 1 | T68: 1 | U68: 7 | V68: 3 | W68: ? | X68: 2 | Y68: 5 | Z68: 5 | AA68: 7
A69: 1034 | B69: PULSERA CUZQUEÑA | E69: UND | F69: 1 | G69: 2 | H69: 6 | I69: 2.4 | J69: 3.6 | K69: S | N69: KINGKO | P69: 76 | Q69: 94 | R69: 261 | S69: 357 | T69: 276 | U69: 385 | V69: 237 | W69: 239 | X69: 225 | Y69: 121 | Z69: 125 | AA69: 250
A70: 1037 | B70: ARETE ALA DE MARIPOSA | E70: UND | F70: 1 | G70: 2 | H70: 6 | I70: 3 | J70: 3 | K70: S | N70: LA COC | T70: 572.9 | U70: ? | V70: ? | W70: ? | X70: ? | Y70: ? | Z70: ? | AA70: ?
A71: 776 | B71: TORO PUCARA GRANDE | E71: UND | F71: 1 | G71: 2 | H71: 72 | I71: 60 | J71: 12 | K71: S | N71: LA CAS | Y71: 50 | Z71: 55 | AA71: 65
A72: 777 | B72: JUEGO DE JARRON | E72: UND | F72: 1 | G72: 1 | H72: 15 | I72: 30 | J72: -15 | K72: S | N72: Leche | O72: 29 | P72: 107 | Q72: 95 | R72: 166 | S72: 149 | T72: 136 | U72: 173 | V72: 108 | W72: 46 | X72: 35 | Y72: 54 | Z72: 45 | AA72: 82
A73: 793 | B73: BILLETERA CABALLERO | E73: UND | F73: 1 | G73: 1 | H73: 25 | I73: 12 | J73: 13 | K73: S | N73: Leche C | O73: 3 | Q73: 3 | R73: 10 | S73: 11 | T73: 3 | U73: 7 | V73: 1 | W73: 2 | X73: 1 | Y73: 1 | Z73: 0 | AA73: ?
A74: 796 | B74: llavero de cuero | E74: UND | F74: 1 | G74: 1 | H74: 4.5 | I74: 2.5 | J74: 2 | K74: S | N74: Lic de | P74: 3 | Q74: ? | R74: ? | S74: ? | T74: ? | U74: ? | V74: ? | W74: ? | X74: ?
A75: 753 | B75: Cartera junco mediana | E75: UND | F75: 1 | G75: 1 | H75: 45 | I75: 25 | J75: 20 | K75: S | N75: Lic ex | O75: 15 | P75: 24 | Q75: ? | R75: ? | S75: ? | T75: ? | U75: ? | V75: ? | W75: ? | X75: ?
A76: 755 | B76: BILLETERA JUNCO COLORES | E76: UND | F76: 1 | G76: 1 | H76: 15 | I76: 8 | J76: 7 | K76: S | N76: Lic Re | O76: 14 | P76: 16 | Q76: ? | R76: ? | S76: ? | T76: ? | U76: ? | V76: ? | W76: ? | X76: ?
A77: 764 | B77: CARTUCHERA | E77: UND | F77: 1 | G77: 1 | H77: 25 | I77: 15.34 | J77: 9.66 | K77: S | N77: LICOR | P77: 14 | Q77: 160 | R77: 155 | S77: 136 | T77: 149 | U77: 225 | V77: 147 | W77: 286 | X77: 109 | Y77: 121 | Z77: 90 | AA77: 123
A78: 775 | B78: TORO PUCARA CHICO | E78: UND | F78: 1 | G78: 1 | H78: 18 | I78: 11 | J78: 7 | K78: S | N78: Manjar | O78: 33 | P78: 36 | Q78: 75 | R78: 143 | S78: 92 | T78: 47 | U78: 61 | V78: 47 | W78: 42 | X78: 24 | Y78: 25 | Z78: 25 | AA78: 53
A79: 1041 | B79: BANDEJA | E79: UND | F79: 1 | G79: 1 | H79: 35 | I79: 10 | J79: 25 | K79: S | N79: Manteq | O79: 8 | P79: 29 | Q79: 56 | R79: 80 | S79: 80 | T79: 73 | U79: 55 | V79: 41 | W79: 42 | X79: 32 | Y79: 28 | Z79: 47 | AA79: 62
A80: 1035 | B80: PULSERA BAMBU | E80: UND | F80: 1 | G80: 1 | H80: 3 | I80: 1.5 | J80: 1.5 | K80: S | N80: Medici | O80: 4 | P80: 9 | Q80: ? | R80: ? | S80: ? | T80: ? | U80: ? | V80: ? | W80: ? | X80: ? | AA80: ? | AB80: SALUD?
A81: 1036 | B81: ARETE MANTO | E81: UND | F81: 1 | G81: 1 | H81: 4 | I81: 2 | J81: 2 | K81: S | N81: Melaza | O81: 2 | P81: ? | Q81: ? | R81: ? | S81: 3 | T81: 3 | U81: 1 | V81: 2 | W81: 3 | X81: 2 | Y81: 0 | Z81: 1 | AA81: 2
A82: 1231 | B82: LAPICERO CHOLITO | E82: UND | F82: 1 | G82: 1 | H82: 3 | I82: 1.5 | J82: 1.5 | K82: S | N82: Menest | O82: 7.35 | P82: 38.76 | Q82: 35.76 | R82: 32.02 | S82: 29.86 | T82: 50.81 | U82: 36.55 | V82: 46.61 | W82: 20.46 | X82: 15 | Y82: 26 | Z82: 18 | AA82: 10
A83: 1263 | B83: CANASTA | E83: UND | F83: 1 | G83: 1 | H83: 40 | I83: 20 | J83: 20 | K83: S | N83: MER.D | P83: 3 | Q83: 0 | R83: 2 | S83: 4 | T83: 1 | U83: 0 | V83: 0 | W83: 2 | X83: 0 | AA83: ? | AB83: MERM?
A84: 1267 | B84: CANASTA S/TAPA PEQUEÑA | E84: UND | F84: 1 | G84: 1 | H84: 20 | I84: 13 | J84: 7 | K84: S | N84: Merm R | O84: 23 | P84: 25 | Q84: 25 | R84: 10 | S84: ? | T84: ? | U84: ? | V84: ? | W84: ? | X84: ? | AB84: MERM?
A85: 751 | B85: Cartera | E85: UND | F85: 1 | G85: 1 | H85: 35 | I85: 60 | J85: -25 | K85: S | N85: Mermel | Q85: 20 | R85: 51 | S85: 257 | T85: 133 | U85: 125 | V85: 110 | W85: 128 | X85: 69 | Y85: 121 | Z85: 69 | AA85: 92
A86: 984 | B86: PULSERAS DE CUERO | E86: UND | F86: 1 | G86: 1 | H86: 3 | I86: 1.5 | J86: 1.5 | K86: S | N86: Miel | O86: 20 | P86: 56 | Q86: 76 | R86: 83 | S86: 84 | T86: 95 | U86: 81 | V86: 103 | W86: 89 | X86: 78 | Y86: 77 | Z86: 76 | AA86: 89
A87: 978 | B87: CUADRO MEDIANO PICAFLOR | E87: UND | F87: 1 | G87: 1 | H87: 36 | I87: 17 | J87: 19 | K87: S | N87: MOUSEE | AA87: 1
A88: 843 | B88: AMOROSOS PEQUEÑO | E88: UND | F88: 1 | G88: 1 | H88: 13 | I88: 11.17 | J88: 1.83 | K88: S | N88: Natill | O88: 3 | P88: 3 | Q88: 12 | R88: 16 | S88: 9 | T88: 6 | U88: 6 | V88: 9 | W88: 2 | X88: 9 | Y88: 0 | Z88: 0 | AA88: ?
A89: 798 | B89: Cartera mujer | E89: UND | F89: 1 | G89: 1 | H89: 9 | I89: 19 | J89: -10 | K89: S | N89: PADDIN | R89: 9 | S89: 11 | T89: 8 | U89: 2 | V89: ? | W89: 3 | X89: 2 | Y89: 1 | Z89: 0 | AA89: ?
A90: 803 | B90: CUADRO CON ALA DE MARIPOSA MEDIANO | E90: UND | F90: 1 | G90: 1 | H90: 36 | I90: 20 | J90: 16 | K90: S | N90: Pan | O90: 983 | P90: 1739 | Q90: 2363 | R90: 2305 | S90: 2228 | T90: 1666 | U90: 1705 | V90: 1527 | W90: 1014 | X90: 1561 | Y90: 1093 | Z90: 762 | AA90: 1012
A91: 804 | B91: CUADRO CON ALA DE MARIPOSA PEQUEÑO | E91: UND | F91: 1 | G91: 1 | H91: 32 | I91: 18 | J91: 14 | K91: S | N91: PANELA | Q91: 11 | R91: 18 | S91: 36 | T91: 60 | U91: 35 | V91: 45 | W91: 28 | X91: 12 | Y91: 31 | Z91: 26 | AA91: 37
A92: 837 | B92: ARDILLA | E92: UND | F92: 1 | G92: 1 | H92: 12 | I92: 6.67 | J92: 5.33 | K92: S | N92: PANETO | T92: 28 | U92: 32 | V92: 36 | W92: 81 | X92: ? | Y92: ? | Z92: ? | AA92: ?
G93: 53 | H93: 622.5 | I93: 438.9 | J93: 183.6 | K93: 0 | L93: 0 | N93: Pap Hi | O93: 22 | P93: 44 | Q93: 74 | R93: 71 | S93: 48 | T93: 54 | U93: 39 | V93: 5 | W93: 20 | X93: 11 | Y93: 3 | Z93: 2 | AA93: ?
A94: Atun | N94: Papel | O94: 12 | P94: 21 | Q94: ? | R94: ? | S94: ? | T94: ? | U94: ? | V94: ? | W94: ? | X94: ? | AA94: ? | AB94: PAPELR
A95: 210 | B95: Lomito Atun Florida ACV 170g | D95: 7751158000529 | E95: UND | F95: 1 | G95: 12 | H95: 55.2 | I95: 56.16 | J95: -0.96 | K95: S | N95: PAPELR | P95: 8 | Q95: 4 | R95: 2 | S95: 17 | T95: 1 | U95: 14 | V95: 11 | W95: 3 | X95: 0 | Z95: ? | AA95: 5
A96: 209 | B96: Lomi | D96: 7751158000499 | E96: UND | F96: 1 | G96: 8 | H96: 49.6 | I96: 38.08 | J96: 11.52 | K96: S | N96: Pikeo | O96: 9 | P96: 7 | Q96: 3 | R96: 1 | S96: 4 | T96: 2 | U96: 3 | V96: 2 | W96: 0 | X96: 0 | Z96: ? | AA96: ?
A97: 158 | B97: Trozos Atun Campomar 170g | D97: 7750408001675 | E97: UND | F97: 1 | G97: 3 | H97: 15.3 | I97: 11.82 | J97: 3.48 | K97: S | N97: Piqueo | O97: 85 | P97: 101 | Q97: 141 | R97: 221 | S97: 135 | T97: 96 | U97: 54 | V97: 46 | W97: 5 | X97: 1 | Z97: ? | AA97: ?
A98: 1104 | B98: TROZOS DE CABALLA 170GR | D98: 7755347002370 | E98: UND | F98: 1 | G98: 1 | H98: 4 | I98: 20.5 | J98: -16.5 | K98: S | N98: Pisco | O98: 2 | P98: 14 | Q98: ? | R98: ? | S98: ? | T98: ? | U98: ? | V98: ? | W98: ? | X98: ? | AB98: LICOR
A99: 157 | B99: Lomo Atun Campomar AC. VG. 170g | D99: 7750408000449 | E99: UND | F99: 1 | G99: 1 | H99: 5.2 | I99: 4.02 | J99: 1.18 | K99: S | N99: Polen | O99: 3 | P99: 2 | Q99: 4 | R99: 2 | S99: ? | T99: ? | U99: ? | V99: ? | W99: ? | X99: ? | AB99: THIKA T
A100: 1103 | B100: FILETE DE CABALLA 960GR | D100: 7754020000092 | E100: UND | F100: 1 | G100: 1 | H100: 21.9 | I100: 17 | J100: 4.9 | K100: S | N100: Pollich | O100: 2 | P100: ? | Q100: ? | R100: ? | S100: ? | T100: ? | U100: ? | V100: ? | W100: ? | X100: ? | AB100: NO EXI
G101: 26 | H101: 151.2 | I101: 147.58 | J101: 3.62 | K101: 0 | L101: 0 | N101: POLLO | P101: 8.81 | Q101: ? | R101: ? | S101: ? | T101: ? | U101: ? | V101: ? | W101: ? | X101: ? | AA101: ?
A102: AZUCAR | N102: PULPAS | Y102: 25 | Z102: 7 | AA102: 3
A103: 1133 | B103: AZUCAR POMALCA 1 KG | D103: 7751268000273 | E103: UND | F103: 1 | G103: 1 | H103: 3.4 | I103: 2.64 | J103: 0.76 | K103: S | N103: Queso | O103: 48.82 | P103: 157.28 | Q103: 257.87 | R103: 272.46 | S103: 269.64 | T103: 277.89 | U103: 253.26 | V103: 243.78 | W103: 163.53 | X103: 95.12 | Y103: 108.47 | Z103: 125.93 | AA103: 126.8
G104: 1 | H104: 3.4 | I104: 2.64 | J104: 0.76 | K104: 0 | L104: 0 | N104: QUINLO | P104: 26 | Q104: 22 | R104: 25 | S104: 27 | T104: 45 | U104: 37 | V104: 31 | W104: 21 | X104: 23 | Y104: 18 | Z104: 27 | AA104: 30
A105: Azúcar | N105: Quinua | O105: 1 | P105: ? | Q105: ? | R105: 2 | S105: 12 | T105: 20 | U105: 33 | V105: 16 | W105: 13 | X105: 6 | Y105: 10 | Z105: 7 | AA105: 5
A106: 278 | B106: PANELA GRANULADA O AZUCAR ECOLOGICA 50 KG | D106: 7752278618021 | E106: UND | F106: 1 | G106: 8 | H106: 76 | I106: 56.64 | J106: 19.36 | K106: S | N106: Ron | O106: 6 | P106: 22 | Q106: ? | R106: ? | S106: ? | T106: ? | U106: ? | V106: ? | W106: ? | X106: ? | AA106: ? | AB106: LICOR
A107: 575 | B107: PANELA 1KG | C107: NUTRIM | D107: 57500003 | E107: UND | F107: 1 | G107: 2 | H107: 18 | I107: 13 | J107: 5 | K107: S | N107: Sal | O107: 57 | P107: 111 | Q107: 161 | R107: 179 | S107: 195 | T107: 162 | U107: 222 | V107: 177 | W107: 210 | X107: 144 | Y107: 119 | Z107: 141 | AA107: 127
G108: 10 | H108: 94 | I108: 69.64 | J108: 24.36 | K108: 0 | L108: 0 | N108: Salsa (R+P + SALSAS) | O108: 34 | P108: 65 | Q108: 45 | R108: 53 | S108: =38+18+18 -> 74 | T108: =12+34+37 -> 83 | U108: =58+11+41 -> 110 | V108: =16+9+29 -> 54 | W108: =32+10+54 -> 96 | X108: =24+2+32 -> 58 | Y108: =14+8+15 -> 37 | Z108: =8+11+30 -> 49 | AA108: =16+19+39 -> 74
A109: Beb Na | N109: Salud | O109: 15 | P109: 180 | Q109: 370 | R109: 371 | S109: 425 | T109: 447 | U109: 544 | V109: 537 | W109: 457 | X109: 356 | Y109: 360 | Z109: 313 | AA109: 340
A110: 1022 | B110: NECTAR DE GUANABANA Y MARACUYA | E110: UND | F110: 1 | G110: 22 | H110: 121 | I110: 99 | J110: 22 | K110: S | N110: SANDWI | Q110: 11.21 | R110: 47.49 | S110: 52.47 | T110: 24 | U110: 84 | V110: 18 | W110: 12 | X110: 0 | Y110: 8 | Z110: 12 | AA110: 52
A111: 471 | B111: D'CHIA DRINK GUANABANA | D111: 7756982000028 | E111: BOT | F111: 1 | G111: 22 | H111: 91.6 | I111: 61.6 | J111: 30 | K111: S | N111: Sasona | O111: 2 | P111: 14 | Q111: 16 | R111: 4 | S111: 7 | T111: 4 | U111: 0 | V111: 9 | W111: 8 | X111: 0 | Y111: 0 | Z111: ? | AA111: ?
A112: 1023 | B112: AGUAYMANTO Y PIÑA | E112: UND | F112: 1 | G112: 19 | H112: 104.5 | I112: 85.5 | J112: 19 | K112: S | N112: Snac n | O112: 60 | P112: 154 | Q112: 114 | R112: 117 | S112: 72 | T112: 37 | U112: 15 | V112: 23 | W112: 11 | X112: ? | Z112: ? | AA112: ?
A113: 470 | B113: D'CHIA DRINK CAMU CAMU | D113: 7756982000011 | E113: BOT | F113: 1 | G113: 19 | H113: 79.6 | I113: 53.2 | J113: 26.4 | K113: S | N113: Snack | O113: 197 | P113: 270 | Q113: 257 | R113: 295 | S113: 277 | T113: 319 | U113: 432 | V113: 396 | W113: 419 | X113: 315 | Y113: 274 | Z113: 257 | AA113: 258
A114: 400 | B114: NECTAR DE COCONA 30CL | C114: HIGHLA | D114: 7754819001415 | E114: UND | F114: 1 | G114: 18 | H114: 62.8 | I114: 45 | J114: 17.8 | K114: S | N114: Sopa | O114: 5 | P114: 10 | Q114: 23 | R114: 22 | S114: 16 | T114: 15 | U114: 9 | V114: 17 | W114: 5 | X114: 0 | Y114: 0 | Z114: ? | AA114: ?
A115: 303 | B115: JUGOS KERO CAMU CAMU 475ML | D115: 7753197000164 | E115: BOT | F115: 1 | G115: 14 | H115: 56 | I115: 42.84 | J115: 13.16 | K115: S | N115: SOYA | P115: 14 | Q115: 18 | R115: 13 | S115: 21 | T115: 18 | U115: 17 | V115: 15 | W115: 14 | X115: 18 | Y115: 17 | Z115: 11 | AA115: 27
A116: 1024 | B116: PAPAYA PIÑA Y MARACUYA | E116: UND | F116: 1 | G116: 14 | H116: 77 | I116: 63 | J116: 14 | K116: S | N116: Stevia | O116: 9 | P116: 22 | Q116: 16 | R116: 20 | S116: 23 | T116: 23 | U116: 47 | V116: 50 | W116: 30 | X116: 27 | Y116: 50 | Z116: 17 | AA116: 25
A117: 7 | B117: NECTAR DE MANGO BOLTELLA VIDRIO 250 ML | D117: 77512598 | E117: UND | F117: 1 | G117: 14 | H117: 35 | I117: 26.74 | J117: 8.26 | K117: S | N117: TAMALE | S117: 152 | T117: 154 | U117: 99 | V117: 61 | W117: 133 | X117: 120 | Y117: 115 | Z117: 151 | AA117: 72
A118: 305 | B118: JUGOS KERO PIÑA, FRESA 475ML | D118: 7753197000287 | E118: BOT | F118: 1 | G118: 12 | H118: 48 | I118: 36.72 | J118: 11.28 | K118: S | N118: Tapena | O118: 18 | P118: 27 | Q118: 28 | R118: 41 | S118: 51 | T118: 31 | U118: 37 | V118: 28 | W118: 42 | X118: 24 | Y118: 34 | Z118: 27 | AA118: 27
A119: 163 | B119: NECTAR DE MANGO BOLTELLA VIDRIO 1L | D119: 7750632001281 | E119: UND | F119: 1 | G119: 12 | H119: 80.9 | I119: 55.92 | J119: 24.98 | K119: S | N119: Te | O119: 22 | P119: 99 | Q119: 110 | R119: 148 | S119: 172 | T119: 142 | U119: 209 | V119: 131 | W119: 122 | X119: 73 | Y119: 51 | Z119: 49 | AA119: 70
A120: 461 | B120: FOUR AND NAT CON BLUEBERRY & GRAPE | D120: 7756582000046 | E120: BOT | F120: 1 | G120: 12 | H120: 72 | I120: 54 | J120: 18 | K120: S | N120: Te ver | P120: 11 | Q120: 35 | R120: 34 | S120: 44 | T120: 23 | U120: 26 | V120: 21 | W120: ? | X120: ? | AA120: ? | AB120: INFU
A121: 445 | B121: EMOLIENTE BOTELLA VIDRIO 473 ML | C121: ORIUND | D121: 7756049000541 | E121: UND | F121: 1 | G121: 12 | H121: 41.7 | I121: 32.64 | J121: 9.06 | K121: S | N121: Thika | O121: 98 | P121: 83 | Q121: 49 | R121: 51 | S121: 37 | T121: 23 | U121: 8 | V121: 15 | W121: 36 | X121: 25 | Y121: 19 | Z121: 38 | AA121: 35
A122: 463 | B122: FOUR AND NAT CHIA CON FRESA | D122: 7756582000060 | E122: BOT | F122: 1 | G122: 11 | H122: 77 | I122: 58.3 | J122: 18.7 | K122: S | N122: TRUCHA | U122: 6.69 | V122: 0 | W122: 0 | X122: 0 | Y122: 0 | Z122: 6.05 | AA122: 1.89
A123: 458 | B123: FOUR AND NAT ALOE VERA | D123: 7756582000015 | E123: BOT | F123: 1 | G123: 10 | H123: 60 | I123: 45 | J123: 15 | K123: S | N123: TURRON | R123: 3 | S123: 27 | T123: 32 | U123: 38 | V123: 16 | W123: 9 | X123: 2 | Y123: 1 | Z123: 0 | AA123: ?
A124: 302 | B124: JUGOS KERO CAMU CAMU, MARACUYA, MANGO 475ML | D124: 7753197000041 | E124: BOT | F124: 1 | G124: 10 | H124: 40 | I124: 30.6 | J124: 9.4 | K124: S | N124: Tostad | O124: 3 | P124: 41 | Q124: ? | R124: ? | S124: ? | T124: ? | U124: ? | V124: ? | W124: ? | X124: ? | AB124: PAN
A125: 393 | B125: NECTAR DE PAPAYA CON MARACUYA 30CL | C125: HIGHLA | D125: 7754819001026 | E125: UND | F125: 1 | G125: 10 | H125: 35 | I125: 25 | J125: 10 | K125: S | N125: Verdur | O125: 94.43 | P125: 152.89 | Q125: 25.67 | R125: 177.38 | S125: 142 | T125: 76.97 | U125: 56.16 | V125: 15 | W125: 3 | X125: 0 | Y125: 0 | Z125: 0 | AA125: 17 | AB125: ?
A126: 304 | B126: JUGOS KERO NARANJA, COCONA, GRANADILLA 475ML | D126: 7753197000249 | E126: BOT | F126: 1 | G126: 9 | H126: 36 | I126: 27.54 | J126: 8.46 | K126: S | N126: Vinagr | O126: 8 | P126: 6 | Q126: 8 | R126: 16 | S126: 8 | T126: 9 | U126: 17 | V126: 18 | W126: 22 | X126: 11 | Y126: 20 | Z126: 19 | AA126: 18
A127: 459 | B127: FOUR AND NAT ALOE VERA CON MANGO | D127: 7756582000022 | E127: BOT | F127: 1 | G127: 9 | H127: 54 | I127: 40.5 | J127: 13.5 | K127: S | N127: Vino | P127: 1 | Q127: ? | R127: ? | S127: ? | T127: ? | U127: ? | V127: ? | W127: ? | X127: ? | AB127: LICOR
A128: 1025 | B128: COCONA Y PIÑA | E128: UND | F128: 1 | G128: 9 | H128: 49.5 | I128: 40.5 | J128: 9 | K128: S | N128: Vino R | O128: 4 | P128: 5 | Q128: ? | R128: ? | S128: ? | T128: ? | U128: ? | V128: ? | W128: ? | X128: ? | AB128: LICOR
A129: 472 | B129: D'CHIA DRINK MANGO | D129: 7756982000035 | E129: BOT | F129: 1 | G129: 9 | H129: 38.4 | I129: 25.2 | J129: 13.2 | K129: S | N129: Vino T | O129: 4 | P129: 9 | Q129: ? | R129: ? | S129: ? | T129: ? | U129: ? | V129: ? | W129: ? | X129: ? | AB129: LICOR
A130: 1157 | B130: CHIA CAMU CAMU 300 ML | D130: 7758084000012 | E130: UND | F130: 1 | G130: 8 | H130: 41.6 | I130: 32.56 | J130: 9.04 | K130: S | N130: YOGUR | Q130: 129 | R130: 230 | S130: 239 | T130: 250 | U130: 328 | V130: 331 | W130: 227 | X130: 189 | Y130: 245 | Z130: 295 | AA130: 353
A131: 460 | B131: FOUR AND NAT MANZANA CON LINAZA | D131: 7756582000039 | E131: BOT | F131: 1 | G131: 7 | H131: 42 | I131: 31.5 | J131: 10.5 | K131: S | N131: Yog re | O131: 11 | P131: ? | Q131: ? | R131: ? | S131: ? | T131: ? | U131: ? | V131: ? | W131: ? | X131: ? | AB131: YOGUR
A132: 433 | B132: NECTAR DE TAMARINDO 485 ML | D132: 7755413000187 | E132: BOT | F132: 1 | G132: 7 | H132: 31.5 | I132: 22.4 | J132: 9.1 | K132: S | N132: Yogurt | O132: 75 | P132: 213 | Q132: 165 | R132: 13 | S132: ? | T132: 22 | U132: ? | V132: ? | W132: ? | X132: ? | AB132: YOGUR
A133: 300 | B133: JUGOS KERO CAMU CAMU, NARANJA, PIÑA 475ML | D133: 7753197000027 | E133: BOT | F133: 1 | G133: 7 | H133: 28 | I133: 21.42 | J133: 6.58 | K133: S
A134: 307 | B134: SMOTHIE KERO MANGO 300ML | D134: 7753197000324 | E134: BOT | F134: 1 | G134: 6 | H134: 30 | I134: 20.4 | J134: 9.6 | K134: S
A135: 389 | B135: Jugo de piña 30cl | C135: HIGHLA | D135: 7754819000098 | E135: UND | F135: 1 | G135: 6 | H135: 19.8 | I135: 15 | J135: 4.8 | K135: S | N135: TOTAL PRODUCTOS VENDIDOS | O135: =SUM(O5:O132) -> 5148.56 | P135: 10878.21 | Q135: 12902.28 | R135: 14485.12 | S135: 15166.98 | T135: 14662.74 | U135: 15831.05 | V135: 13524.07 | W135: 12641.14 | X135: 11563.33 | Y135: 11162.95 | Z135: 10955.62 | AA135: 11859.34
A136: 431 | B136: NECTAR DE COCONA 485 ML | D136: 7755413000095 | E136: BOT | F136: 1 | G136: 5 | H136: 20 | I136: 13.3 | J136: 6.7 | K136: S
A137: 404 | B137: NECTAR MANGO BOTELLA VIDRIO 1L | C137: HIGHLA | D137: 7754819001507 | E137: UND | F137: 1 | G137: 5 | H137: 42 | I137: 30 | J137: 12 | K137: S
A138: 301 | B138: JUGOS KERO CAMU CAMU, MANZANA, CANELA 475ML | D138: 7753197000034 | E138: BOT | F138: 1 | G138: 5 | H138: 20 | I138: 15.3 | J138: 4.7 | K138: S
A139: 162 | B139: Nectar de durazno boltella vidrio 1L | D139: 7750632001236 | E139: UND | F139: 1 | G139: 5 | H139: 30.5 | I139: 23.3 | J139: 7.2 | K139: S
A140: 876 | B140: JUGO DE PAPAYA CON MARACUYA 1L | C140: HIGHLA | D140: 7754819000029 | E140: UND | F140: 1 | G140: 5 | H140: 42.5 | I140: 30 | J140: 12.5 | K140: S
A141: 1159 | B141: CHIA GUANABANA 300 ML | D141: 7758084000036 | E141: UND | F141: 1 | G141: 4 | H141: 20.8 | I141: 16.28 | J141: 4.52 | K141: S
A142: 1071 | B142: COCONA 296ML | D142: 7756419000027 | E142: UND | F142: 1 | G142: 4 | H142: 14 | I142: 9.16 | J142: 4.84 | K142: S
A143: 392 | B143: JUGO NARANJA CON PIÑA 1L | C143: HIGHLA | D143: 7754819000586 | E143: UND | F143: 1 | G143: 4 | H143: 34 | I143: 24 | J143: 10 | K143: S
A144: 391 | B144: Jugo de naranja 30cl | C144: HIGHLA | D144: 7754819000517 | E144: UND | F144: 1 | G144: 4 | H144: 13.2 | I144: 10 | J144: 3.2 | K144: S
A145: 462 | B145: FOUR AND NAT CHIA CON MARACUYA | D145: 7756582000053 | E145: BOT | F145: 1 | G145: 4 | H145: 28 | I145: 21.2 | J145: 6.8 | K145: S
A146: 441 | B146: CHINCHA BOTELLA VIDRIO 473 ML | C146: ORIUND | D146: 7756049000015 | E146: UND | F146: 1 | G146: 3 | H146: 10.2 | I146: 8.16 | J146: 2.04 | K146: S
A147: 306 | B147: SMOTHIE KERO MANZANA CANELA 300ML | D147: 7753197000300 | E147: BOT | F147: 1 | G147: 3 | H147: 15 | I147: 10.2 | J147: 4.8 | K147: S
A148: 1158 | B148: CHIA MANGO 300 ML | D148: 7758084000029 | E148: UND | F148: 1 | G148: 3 | H148: 15.6 | I148: 12.21 | J148: 3.39 | K148: S
A149: 1175 | B149: D VINE 750 ML | D149: 7752056000338 | E149: UND | F149: 1 | G149: 2 | H149: 78 | I149: 60 | J149: 18 | K149: S
A150: 388 | B150: JUGO DE PIÑA BOTELLA VIDRIO 1L | C150: HIGHLA | D150: 7754819000050 | E150: UND | F150: 1 | G150: 2 | H150: 16.5 | I150: 12 | J150: 4.5 | K150: S
A151: 446 | B151: JUGO DE PIÑA BOTELLA VIDRIO 473 ML | C151: ORIUND | D151: 7756049000817 | E151: UND | F151: 1 | G151: 2 | H151: 7 | I151: 5.44 | J151: 1.56 | K151: S
A152: 1070 | B152: CHICA MORADA 296ML | D152: 7756419000010 | E152: UND | F152: 1 | G152: 1 | H152: 3.5 | I152: 2.29 | J152: 1.21 | K152: S
A153: 1072 | B153: NECTAR NISPERO 296ML | D153: 7756419000041 | E153: UND | F153: 1 | G153: 1 | H153: 3.5 | I153: 2.29 | J153: 1.21 | K153: S
G154: 391 | H154: 1965.4 | I154: 1470.73 | J154: 494.67 | K154: 0 | L154: 0
A155: Bebida
A156: 13 | B156: Bebida Maltin Power 200ml | D156: 77540959 | E156: UND | F156: 1 | G156: 13 | H156: 11.7 | I156: 9.23 | J156: 2.47 | K156: S
A157: 16 | B157: B.Esp Maltin Power 269ml | D157: 77542533 | E157: UND | F157: 1 | G157: 11 | H157: 13.2 | I157: 9.13 | J157: 4.07 | K157: S
A158: 1142 | B158: MALTIN POWER 330ML | D158: 77531704 | E158: UND | F158: 1 | G158: 10 | H158: 14 | I158: 8.3 | J158: 5.7 | K158: S
A159: 1021 | B159: BIO BIO | E159: UND | F159: 1 | G159: 1 | H159: 5.5 | I159: 0 | J159: 5.5 | K159: S
G160: 35 | H160: 44.4 | I160: 26.66 | J160: 17.74 | K160: 0 | L160: 0
A161: Café D
A162: 562 | B162: CAFÉ ALGARROBO 200G | C162: NUTRIM | D162: 562 | E162: UND | F162: 1 | G162: 1 | H162: 4.9 | I162: 3.5 | J162: 1.4 | K162: S
A163: 563 | B163: CAFÉ CEBADA 200G | E163: UND | F163: 1 | G163: 1 | H163: 4.9 | I163: 3.54 | J163: 1.36 | K163: S
A164: 570 | B164: MULTICAFE 250G | E164: UND | F164: 1 | G164: 1 | H164: 4.9 | I164: 3.54 | J164: 1.36 | K164: S
G165: 3 | H165: 14.7 | I165: 10.58 | J165: 4.12 | K165: 0 | L165: 0
A166: Café o
A167: 1089 | B167: CAFE EXPRESO GOURMET 250 GR | C167: TAITA | E167: UND | F167: 1 | G167: 6 | H167: 90 | I167: 60 | J167: 30 | K167: S
A168: 1090 | B168: CAFE TRADICIONAL 250 GR | C168: TAITA | E168: UND | F168: 1 | G168: 1 | H168: 15 | I168: 10 | J168: 5 | K168: S
G169: 7 | H169: 105 | I169: 70 | J169: 35 | K169: 0 | L169: 0
A170: Cafe R
A171: 659 | B171: CAFE MOLIDO TRADICIONAL EMPAQUE 250 GR | E171: UND | F171: 1 | G171: 5 | H171: 90 | I171: 53.1 | J171: 36.9 | K171: S
A172: 723 | B172: PAQUETE DE CAFÉ COLOR NEGRO 325 GR | E172: UND | F172: 1 | G172: 1 | H172: 25 | I172: 12 | J172: 13 | K172: S
G173: 6 | H173: 115 | I173: 65.1 | J173: 49.9 | K173: 0 | L173: 0
A174: Carne
A175: 936 | B175: CADERA KG | E175: UND | F175: 1 | G175: 3.47 | H175: 87.4944 | I175: 111.45 | J175: -23.96 | K175: S
A176: 928 | B176: CARNE OSOBUCO KG | E176: UND | F176: 1 | G176: 3.2 | H176: 49.3416 | I176: 35.24 | J176: 14.1 | K176: S
A177: 933 | B177: PICAÑA KG | E177: KG | F177: 1 | G177: 3.01 | H177: 71.638 | I177: 61.58 | J177: 10.05 | K177: S
A178: 932 | B178: COLITA DE CUADRIL KG | E178: KG | F178: 1 | G178: 2.95 | H178: 70.21 | I178: 60.36 | J178: 9.85 | K178: S
A179: 938 | B179: ASADO DE PEJERREY KG | E179: UND | F179: 1 | G179: 2.51 | H179: 59.6428 | I179: 81.04 | J179: -21.4 | K179: S
A180: 970 | B180: AZADO CUADRADO KG | E180: UND | F180: 1 | G180: 2.36 | H180: 52.9536 | I180: 48.56 | J180: 4.4 | K180: S
A181: 930 | B181: ASADO DE TIRA KG | E181: UND | F181: 1 | G181: 1.59 | H181: 35.5264 | I181: 32.58 | J181: 2.95 | K181: S
A182: 969 | B182: ENTRAÑA KG | E182: KG | F182: 1 | G182: 1.4 | H182: 31.3152 | I182: 22.37 | J182: 8.95 | K182: S
A183: 935 | B183: TAPA KG | E183: UND | F183: 1 | G183: 1.14 | H183: 28.7784 | I183: 37.12 | J183: -8.34 | K183: S
A184: 929 | B184: CARNE PECHO KG | E184: UND | F184: 1 | G184: 0.67 | H184: 10.2872 | I184: 7.35 | J184: 2.94 | K184: S
A185: 941 | B185: BIFE ANCHO KG | E185: KG | F185: 1 | G185: 0.66 | H185: 25.818 | I185: 23.7 | J185: 2.12 | K185: S
A186: 939 | B186: MALAYA KG | E186: KG | F186: 1 | G186: 0.59 | H186: 13.2608 | I186: 11.41 | J186: 1.85 | K186: S
A187: 940 | B187: BIFE ANGOSTO KG | E187: KG | F187: 1 | G187: 0.51 | H187: 19.89 | I187: 18.26 | J187: 1.63 | K187: S
G188: 24.06 | H188: 556.16 | I188: 551.02 | J188: 5.14 | K188: 0 | L188: 0
A189: Cereal
A190: 205 | B190: Cereal pop Quinua Confitada 100g | C190: INCASU | D190: 7750960193115 | E190: BOLSA | F190: 1 | G190: 6 | H190: 30 | I190: 23.1 | J190: 6.9 | K190: S
A191: 379 | B191: SALVADO DE TRIGO ENTERO 250G | D191: 7753893000031 | E191: UND | F191: 1 | G191: 4 | H191: 14 | I191: 9.6 | J191: 4.4 | K191: S
A192: 198 | B192: Hoj. Inst. Quinua Incasur 3 sab 250g | C192: INCASU | D192: 7750960003827 | E192: CAJA | F192: 1 | G192: 4 | H192: 58.4 | I192: 45 | J192: 13.4 | K192: S
A193: 204 | B193: Cereal pop Kiwicha Confitada 150g | C193: INCASU | D193: 7750960193108 | E193: BOLSA | F193: 1 | G193: 4 | H193: 20 | I193: 15.4 | J193: 4.6 | K193: S
A194: 195 | B194: Granola Incasur Natural 250g | C194: INCASU | D194: 7750960002936 | E194: CAJA | F194: 1 | G194: 3 | H194: 33.6 | I194: 25.89 | J194: 7.71 | K194: S
A195: 26 | B195: KIWICHA GRANOLA 300 G | C195: CUSCO | D195: 610240002148 | E195: UND | F195: 1 | G195: 3 | H195: 27 | I195: 13.5 | J195: 13.5 | K195: S
A196: 424 | B196: SALVADO DE TRIGO FINO 250G | D196: 7755231000109 | E196: UND | F196: 1 | G196: 1 | H196: 3.8 | I196: 2.4 | J196: 1.4 | K196: S
A197: 538 | B197: KIWICHA CONFITE 100 G | C197: CUSCO | D197: 7759338269650 | E197: UND | F197: 1 | G197: 1 | H197: 7.8 | I197: 5.5 | J197: 2.3 | K197: S
A198: 199 | B198: Hoj. Inst. Quinua Incasur Natural 150g | C198: INCASU | D198: 7750960003834 | E198: CAJA | F198: 1 | G198: 1 | H198: 14.6 | I198: 11.25 | J198: 3.35 | K198: S
G199: 27 | H199: 209.2 | I199: 151.64 | J199: 57.56 | K199: 0 | L199: 0
A200: Cerv a
A201: 590 | B201: CERVEZA PRUSIA TIPO MIEL DE ABEJA 330ML | E201: BOT | F201: 1 | G201: 10 | H201: 120 | I201: 70 | J201: 50 | K201: S
... 845 more rows

Sheet BASE
A1: TOTAL VENTAS / CATEGORIA | B1: abr-15 | C1: may-15 | D1: jun-15 | E1: jul-15 | F1: ago-15 | G1: sept-15 | H1: oct-15 | I1: nov-15 | J1: dic-15 | K1: ene-16 | L1: feb-16 | M1: mar-16 | N1: abr-16 | O1: NOUVELLE CAT.
A3: Aceite | B3: 47 | C3: 71 | D3: 87 | E3: 103 | F3: 113 | G3: 121 | H3: 163 | I3: 137 | J3: 128 | K3: 95 | L3: 94 | M3: 88 | N3: 118
A4: Aceitunas | B4: 22 | C4: 19 | D4: 20 | E4: 26 | F4: 51 | G4: 25 | H4: 30 | I4: 16 | J4: 21 | K4: 27 | L4: 15 | M4: 37 | N4: 64
A5: Agua | B5: 207 | C5: 344 | D5: 363 | E5: 344 | F5: 312 | G5: 422 | H5: 573 | I5: 417 | J5: 463 | K5: 506 | L5: 629 | M5: 545 | N5: 442
A6: AGUARD | D6: 1 | E6: ? | F6: ? | G6: ? | H6: ? | I6: ? | J6: ? | K6: ? | L6: ? | M6: ? | N6: ? | O6: LICOR
A7: Algarr | B7: 6 | C7: 10 | D7: 6 | E7: 22 | F7: 17 | G7: 16 | H7: 16 | I7: 16 | J7: 18 | K7: 11 | L7: 9 | M7: 18 | N7: 14
A8: Arroz | B8: 29 | C8: 39 | D8: 97 | E8: 74 | F8: 80 | G8: 98 | H8: 80 | I8: 62 | J8: 31 | K8: 35 | L8: 22 | M8: 33 | N8: 39
A9: Artesa | B9: 53 | C9: 199 | D9: 184 | E9: 158 | F9: 120 | G9: 145 | H9: 159 | I9: 190 | J9: 253 | K9: 88 | L9: 35 | M9: 60 | N9: 63
A10: Atun | B10: 26 | C10: 82 | D10: 61 | E10: 64 | F10: 42 | G10: 69 | H10: 91 | I10: 54 | J10: 26 | K10: 24 | L10: 8 | M10: 24 | N10: 21
A11: Azucar | B11: 11 | C11: 35 | D11: 32 | E11: 51 | F11: 44 | G11: 4 | H11: 15 | I11: 13 | J11: 16 | K11: 13 | L11: 9 | M11: 13 | N11: 21
A12: BARRAE | C12: 1 | D12: ? | E12: 31 | F12: 10 | G12: 62 | H12: 54 | I12: 39 | J12: 9 | K12: 10 | L12: 1 | M12: 21 | N12: 30
A13: Beb Na | B13: 391 | C13: 756 | D13: 753 | E13: 659 | F13: 775 | G13: 684 | H13: 689 | I13: 603 | J13: 607 | K13: 645 | L13: 640 | M13: 744 | N13: 789
A14: Bisute | D14: 2 | E14: 0 | F14: 0 | G14: 0 | H14: 0 | I14: 1 | J14: 0 | K14: 5 | L14: ? | M14: 10 | N14: 3 | O14: ARTESA
A15: Bebida | B15: 35 | C15: 93 | D15: ? | E15: ? | F15: ? | G15: ? | H15: ? | I15: ? | J15: ? | K15: ? | L15: ? | M15: ? | N15: ? | O15: GASEOSA
A16: BOLSAS | C16: 15 | D16: 37 | E16: 32 | F16: 28 | G16: 20 | H16: 33 | I16: 22 | J16: 59 | K16: 7 | L16: 5 | M16: 5 | N16: 8
A17: CACAO | D17: 16 | E17: 30 | F17: 22 | G17: 27 | H17: 30 | I17: 46 | J17: 45 | K17: 30 | L17: 22 | M17: 21 | N17: 14
A18: Café | B18: 16 | C18: 75 | D18: 91 | E18: 189 | F18: 207 | G18: 144 | H18: 104 | I18: 115 | J18: 114 | K18: 58 | L18: 54 | M18: 69 | N18: 87
A19: CANAST | J19: 5 | K19: ? | L19: ? | M19: ? | N19: 5 | O19: PAS DE MODIF
A20: CAJA | F20: 1 | G20: ? | H20: ? | I20: ? | J20: ? | K20: ? | L20: ? | M20: ? | N20: ? | O20: ARTESA
A21: CARBON | D21: 1 | E21: 2 | F21: 4 | G21: 2 | H21: 1 | I21: 1 | J21: 2 | K21: 4 | L21: 2 | M21: 1 | N21: 1
A22: Carne | B22: 24.06 | C22: 52.91 | D22: 22.87 | E22: 25.42 | F22: 50.24 | G22: 27.84 | H22: 1.7 | I22: 0 | J22: 7.48 | K22: 0 | L22: 0 | M22: 0 | N22: ? | O22: PAS DE MODIF
A23: Cereal | B23: 27 | C23: 48 | D23: 78 | E23: 202 | F23: 188 | G23: 138 | H23: 136 | I23: 130 | J23: 86 | K23: 117 | L23: 124 | M23: 144 | N23: 121
A24: Cerv (A+R) | B24: 109 | C24: 231 | D24: 305 | E24: 280 | F24: 347 | G24: 470 | H24: 609 | I24: 438 | J24: 696 | K24: 400 | L24: 447 | M24: 380 | N24: 398
A25: Chanca | B25: 1 | C25: 3 | D25: 1 | E25: 1 | F25: ? | G25: ? | H25: ? | I25: ? | J25: ? | K25: ? | L25: ? | N25: ? | O25: MIEL
A26: Chia | B26: 2 | C26: ? | D26: ? | E26: ? | F26: ? | G26: ? | H26: ? | I26: ? | J26: ? | K26: ? | L26: ? | N26: ? | O26: COMPLE
A27: Choco | B27: 232 | C27: 461 | D27: 2 | E27: ? | F27: ? | G27: ? | H27: ? | I27: ? | J27: ? | K27: ? | L27: ? | M27: ? | N27: ? | O27: CHOCOL
A28: Chocol | B28: 33 | C28: 258 | D28: 888 | E28: 1272 | F28: 1337 | G28: 1156 | H28: 1364 | I28: 1188 | J28: 1250 | K28: 618 | L28: 544 | M28: 539 | N28: 582
A29: Chuño | B29: 2 | C29: 4 | D29: 4 | E29: 0 | F29: 0 | G29: 0 | H29: 3 | I29: 6 | J29: 2 | K29: ? | L29: ? | M29: ? | N29: ? | O29: COMPLE
A30: Coctel | B30: 3 | C30: 4 | D30: ? | E30: ? | F30: ? | G30: ? | H30: ? | I30: ? | J30: ? | K30: ? | L30: ? | M30: ? | N30: ? | O30: LICOR
A31: Colage | C31: 2 | D31: 14 | E31: 15 | F31: 5 | G31: 8 | H31: 12 | I31: 0 | J31: ? | K31: ? | L31: ? | M31: ? | N31: ? | O31: SALUD
A32: Comple | B32: 142 | C32: 399 | D32: 478 | E32: 553 | F32: 583 | G32: 539 | H32: 669 | I32: 653 | J32: 479 | K32: 549 | L32: 575 | M32: 614 | N32: 658
A33: Condim | B33: 11 | C33: 23 | D33: 18 | E33: 23 | F33: 11 | G33: ? | H33: ? | I33: ? | J33: ? | K33: ? | L33: ? | M33: ? | N33: ? | O33: ESPECI
A34: Conserv | B34: 10 | C34: 28 | D34: 26 | E34: 36 | F34: 56 | G34: 20 | H34: 14 | I34: 21 | J34: 26 | K34: 17 | L34: 12 | M34: 30 | N34: 38
A35: CUIDAD | D35: 2 | E35: 3 | F35: ? | G35: ? | H35: ? | I35: ? | J35: ? | K35: ? | L35: ? | M35: ? | N35: ? | O35: SALUD
A36: D'GUS | D36: 12.45 | E36: ? | F36: ? | G36: ? | H36: ? | I36: ? | J36: ? | K36: ? | L36: ? | M36: ? | N36: ? | O36: PAS DE MODIF
A37: Dulce (R+T) | B37: 88 | C37: 175 | D37: 34 | E37: 328 | F37: 401 | G37: 377 | H37: 418 | I37: 266 | J37: 249 | K37: 121 | L37: 111 | M37: 74 | N37: 40
A38: Emb re | B38: 21 | C38: ? | D38: 2 | E38: ? | F38: ? | G38: ? | H38: ? | I38: ? | J38: ? | K38: ? | L38: ? | M38: ? | N38: ? | O38: EMBUTI
A39: Embuti | B39: 133.24 | C39: 255.12 | D39: 282.62 | E39: 218.19 | F39: 157.83 | G39: 172.06 | H39: 222.15 | I39: 167.21 | J39: 166.47 | K39: 138.41 | L39: 117.47 | M39: 129.54 | N39: 202.02
A40: Encurt | B40: 11 | C40: 23 | D40: 14 | E40: 19 | F40: 13 | G40: 8 | H40: 4 | I40: 4 | J40: 8 | K40: 2 | L40: 4 | M40: 2 | N40: 3
A41: ENSALA | E41: 2 | F41: 2 | G41: 4 | H41: ? | I41: 1 | J41: 2 | K41: 3 | L41: 6 | M41: 5 | N41: 11
A42: ESCENC | C42: 5 | D42: 4 | E42: 5 | F42: 6 | G42: 8 | H42: 7 | I42: 3 | J42: ? | K42: ? | L42: ? | M42: ? | N42: ? | O42: X
A43: Especi | B43: 19 | C43: 41 | D43: 53 | E43: 42 | F43: 81 | G43: 58 | H43: 71 | I43: 47 | J43: 67 | K43: 50 | L43: 44 | M43: 38 | N43: 51
A44: ESPUMA | C44: 4 | D44: ? | E44: ? | F44: ? | G44: ? | H44: ? | I44: ? | J44: ? | K44: ? | L44: ? | M44: ? | N44: ? | O44: LICOR
A45: FIDEOS | C45: 35 | D45: 41 | E45: 29 | F45: 50 | G45: 49 | H45: 58 | I45: 40 | J45: 41 | K45: 27 | L45: 33 | M45: 34 | N45: 39
A46: Filtra | B46: 19 | C46: 35 | D46: ? | E46: ? | F46: ? | G46: ? | H46: ? | I46: ? | J46: ? | K46: ? | M46: ? | O46: INFU
A47: Frijol | B47: 1 | C47: 6 | D47: ? | E47: ? | F47: ? | G47: ? | H47: ? | I47: ? | J47: ? | K47: ? | M47: ? | O47: COMPLE
A48: Frutas | B48: 560.1 | C48: 599.89 | D48: 1019.61 | E48: 1091.55 | F48: 932.94 | G48: 1025.27 | H48: 1071.54 | I48: 1102.47 | J48: 766.2 | K48: 706.8 | L48: 631.01 | M48: 640.1 | N48: 707.63
A49: FUXION | F49: 4 | G49: 26 | H49: 5 | I49: 3 | J49: 1 | K49: 2 | L49: 5 | M49: 8 | N49: 2
A50: GALLE | C50: 53 | D50: 856 | E50: 823 | F50: 1207 | G50: 1208 | H50: 1203 | I50: 1076 | J50: 867 | K50: 609 | L50: 663 | M50: 707 | N50: 915
A51: Gallet | B51: 151 | C51: 526 | D51: ? | E51: ? | F51: ? | G51: ? | H51: ? | I51: ? | J51: ? | K51: ? | M51: ? | N51: ? | O51: GALLE
A52: Gaseos | B52: 298 | C52: 861 | D52: 778 | E52: 691 | F52: 516 | G52: 570 | H52: 632 | I52: 506 | J52: 567 | K52: 516 | L52: 579 | M52: 575 | N52: 624
A53: GELATI | C53: 3 | D53: 5 | E53: 3 | F53: 11 | G53: 16 | H53: 8 | I53: 2 | J53: 0 | K53: 0 | L53: 16 | M53: 11 | N53: 72
A54: GIANIN | D54: 213 | E54: 274 | F54: 205 | G54: 83 | H54: 126 | I54: 94 | J54: 93 | K54: 23 | L54: 151 | M54: 143 | N54: 90
A55: Golosi | B55: 216 | C55: 287 | D55: 105 | E55: 124 | F55: 139 | G55: 233 | H55: 228 | I55: 91 | J55: 50 | K55: 52 | L55: 37 | M55: 30 | N55: 43
A56: Gr Arr | C56: 10.71 | D56: 0 | E56: 11.64 | F56: ? | G56: ? | H56: ? | I56: ? | J56: ? | K56: ? | L56: ? | M56: ? | O56: GR A + R
A57: Gran A+R | B57: 38.44 | C57: 35 | D57: 46 | E57: 49 | F57: 67 | G57: 41 | H57: 35 | I57: 44 | J57: 28 | K57: 22 | L57: 14 | M57: 21 | N57: 19
A58: Granol | B58: 3 | C58: 29 | D58: 46 | E58: 54 | F58: 60 | G58: 83 | H58: 68 | I58: 72 | J58: 66 | K58: 52 | L58: 63 | M58: 84 | N58: 162
A59: Harina | D59: 5 | E59: 10 | F59: 26 | G59: 17 | H59: 12 | I59: 14 | J59: 9 | K59: 18 | L59: 16 | M59: 7 | N59: 17
A60: Helado | B60: 78 | C60: 493 | D60: 596 | E60: 632 | F60: 723 | G60: 664 | H60: 1038 | I60: 933 | J60: 1028 | K60: 2186 | L60: 2013 | M60: 1989 | N60: 1620
A61: HIELO | F61: 7 | G61: 9 | H61: 7 | I61: 14 | J61: 0 | K61: 0 | L61: 0 | M61: 0 | N61: ? | O61: X
A62: Hongos | C62: 1 | D62: 0 | E62: 0 | F62: 0 | G62: 0 | H62: 2 | I62: 4 | J62: 1 | K62: 1 | L62: 0 | M62: 1 | N62: ?
A63: Huevo | B63: 12.12 | C63: 36.84 | D63: 59.22 | E63: 84.97 | F63: 93 | G63: 103 | H63: 81 | I63: 76 | J63: 49 | K63: 51 | L63: 60 | M63: 70 | N63: 66
A64: INFUSI | I64: 42 | J64: 121 | K64: 48 | L64: 84 | M64: 93 | N64: 108
A65: Instan | B65: 9 | C65: 32 | D65: 28 | E65: 25 | F65: 27 | G65: 11 | H65: 13 | I65: 5 | J65: 9 | K65: 2 | L65: ? | M65: ? | N65: ? | O65: COMPLE
A66: Jalea | C66: 1 | D66: ? | E66: 1 | F66: 1 | G66: 1 | H66: 7 | I66: 3 | J66: ? | K66: 2 | L66: 5 | M66: 5 | N66: 7
A67: KINGKO | C67: 76 | D67: 94 | E67: 261 | F67: 357 | G67: 276 | H67: 385 | I67: 237 | J67: 239 | K67: 225 | L67: 121 | M67: 125 | N67: 250
A68: LA COC | G68: 572.9 | H68: ? | I68: ? | J68: ? | K68: ? | L68: ? | M68: ? | N68: ? | O68: X
A69: LA CAS | L69: 50 | M69: 55 | N69: 65 | O69: GIANIN
A70: Leche | B70: 29 | C70: 107 | D70: 95 | E70: 166 | F70: 149 | G70: 136 | H70: 173 | I70: 108 | J70: 46 | K70: 35 | L70: 54 | M70: 45 | N70: 82
A71: Leche C | B71: 3 | D71: 3 | E71: 10 | F71: 11 | G71: 3 | H71: 7 | I71: 1 | J71: 2 | K71: 1 | L71: 1 | M71: 0 | N71: ?
A72: Lic de | C72: 3 | D72: ? | E72: ? | F72: ? | G72: ? | H72: ? | I72: ? | J72: ? | K72: ? | O72: LICOR
A73: Lic ex | B73: 15 | C73: 24 | D73: ? | E73: ? | F73: ? | G73: ? | H73: ? | I73: ? | J73: ? | K73: ? | O73: LICOR
A74: Lic Re | B74: 14 | C74: 16 | D74: ? | E74: ? | F74: ? | G74: ? | H74: ? | I74: ? | J74: ? | K74: ? | O74: LICOR
A75: LICOR | C75: 14 | D75: 160 | E75: 155 | F75: 136 | G75: 149 | H75: 225 | I75: 147 | J75: 286 | K75: 109 | L75: 121 | M75: 90 | N75: 123
A76: Manjar | B76: 33 | C76: 36 | D76: 75 | E76: 143 | F76: 92 | G76: 47 | H76: 61 | I76: 47 | J76: 42 | K76: 24 | L76: 25 | M76: 25 | N76: 53
A77: Manteq | B77: 8 | C77: 29 | D77: 56 | E77: 80 | F77: 80 | G77: 73 | H77: 55 | I77: 41 | J77: 42 | K77: 32 | L77: 28 | M77: 47 | N77: 62
A78: Medici | B78: 4 | C78: 9 | D78: ? | E78: ? | F78: ? | G78: ? | H78: ? | I78: ? | J78: ? | K78: ? | N78: ? | O78: SALUD
A79: Melaza | B79: 2 | C79: ? | D79: ? | E79: ? | F79: 3 | G79: 3 | H79: 1 | I79: 2 | J79: 3 | K79: 2 | L79: 0 | M79: 1 | N79: 2
A80: Menest | B80: 7.35 | C80: 38.76 | D80: 35.76 | E80: 32.02 | F80: 29.86 | G80: 50.81 | H80: 36.55 | I80: 46.61 | J80: 20.46 | K80: 15 | L80: 26 | M80: 18 | N80: 10
A81: MER.D | C81: 3 | D81: 0 | E81: 2 | F81: 4 | G81: 1 | H81: 0 | I81: 0 | J81: 2 | K81: 0 | N81: ? | O81: Mermel
A82: Merm R | B82: 23 | C82: 25 | D82: 25 | E82: 10 | F82: ? | G82: ? | H82: ? | I82: ? | J82: ? | K82: ? | O82: Mermel
A83: Mermel | D83: 20 | E83: 51 | F83: 257 | G83: 133 | H83: 125 | I83: 110 | J83: 128 | K83: 69 | L83: 121 | M83: 69 | N83: 92
A84: Miel | B84: 20 | C84: 56 | D84: 76 | E84: 83 | F84: 84 | G84: 95 | H84: 81 | I84: 103 | J84: 89 | K84: 78 | L84: 77 | M84: 76 | N84: 89
A85: MOUSEE | N85: 1 | O85: Conserv
A86: Natill | B86: 3 | C86: 3 | D86: 12 | E86: 16 | F86: 9 | G86: 6 | H86: 6 | I86: 9 | J86: 2 | K86: 9 | L86: 0 | M86: 0 | N86: ? | O86: X
A87: PADDIN | E87: 9 | F87: 11 | G87: 8 | H87: 2 | I87: ? | J87: 3 | K87: 2 | L87: 1 | M87: 0 | N87: ?
A88: Pan | B88: 983 | C88: 1739 | D88: 2363 | E88: 2305 | F88: 2228 | G88: 1666 | H88: 1705 | I88: 1527 | J88: 1014 | K88: 1561 | L88: 1093 | M88: 762 | N88: 1012
A89: PANELA | D89: 11 | E89: 18 | F89: 36 | G89: 60 | H89: 35 | I89: 45 | J89: 28 | K89: 12 | L89: 31 | M89: 26 | N89: 37
A90: PANETO | G90: 28 | H90: 32 | I90: 36 | J90: 81 | K90: ? | L90: ? | M90: ? | N90: ? | O90: PAN
A91: Pap Hi | B91: 22 | C91: 44 | D91: 74 | E91: 71 | F91: 48 | G91: 54 | H91: 39 | I91: 5 | J91: 20 | K91: 11 | L91: 3 | M91: 2 | N91: ?
A92: Papel | B92: 12 | C92: 21 | D92: ? | E92: ? | F92: ? | G92: ? | H92: ? | I92: ? | J92: ? | K92: ? | N92: ? | O92: PAPELR
A93: PAPELR | C93: 8 | D93: 4 | E93: 2 | F93: 17 | G93: 1 | H93: 14 | I93: 11 | J93: 3 | K93: 0 | M93: ? | N93: 5
A94: Pikeo | B94: 9 | C94: 7 | D94: 3 | E94: 1 | F94: 4 | G94: 2 | H94: 3 | I94: 2 | J94: 0 | K94: 0 | M94: ? | N94: ? | O94: PIQUEO
A95: Piqueo | B95: 85 | C95: 101 | D95: 141 | E95: 221 | F95: 135 | G95: 96 | H95: 54 | I95: 46 | J95: 5 | K95: 1 | M95: ? | N95: ?
A96: Pisco | B96: 2 | C96: 14 | D96: ? | E96: ? | F96: ? | G96: ? | H96: ? | I96: ? | J96: ? | K96: ? | O96: LICOR
A97: Polen | B97: 3 | C97: 2 | D97: 4 | E97: 2 | F97: ? | G97: ? | H97: ? | I97: ? | J97: ? | K97: ? | O97: THIKA THANI
A98: Pollich | B98: 2 | C98: ? | D98: ? | E98: ? | F98: ? | G98: ? | H98: ? | I98: ? | J98: ? | K98: ? | O98: X
A99: POLLO | C99: 8.81 | D99: ? | E99: ? | F99: ? | G99: ? | H99: ? | I99: ? | J99: ? | K99: ? | N99: ? | O99: CARNE
A100: PULPAS | L100: 25 | M100: 7 | N100: 3
A101: Queso | B101: 48.82 | C101: 157.28 | D101: 257.87 | E101: 272.46 | F101: 269.64 | G101: 277.89 | H101: 253.26 | I101: 243.78 | J101: 163.53 | K101: 95.12 | L101: 108.47 | M101: 125.93 | N101: 126.8
A102: QUINLO | C102: 26 | D102: 22 | E102: 25 | F102: 27 | G102: 45 | H102: 37 | I102: 31 | J102: 21 | K102: 23 | L102: 18 | M102: 27 | N102: 30
A103: Quinua | B103: 1 | C103: ? | D103: ? | E103: 2 | F103: 12 | G103: 20 | H103: 33 | I103: 16 | J103: 13 | K103: 6 | L103: 10 | M103: 7 | N103: 5
A104: Ron | B104: 6 | C104: 22 | D104: ? | E104: ? | F104: ? | G104: ? | H104: ? | I104: ? | J104: ? | K104: ? | N104: ? | O104: LICOR
A105: Sal | B105: 57 | C105: 111 | D105: 161 | E105: 179 | F105: 195 | G105: 162 | H105: 222 | I105: 177 | J105: 210 | K105: 144 | L105: 119 | M105: 141 | N105: 127
A106: Salsa (R+P + SALSAS) | B106: 34 | C106: 65 | D106: 45 | E106: 53 | F106: 74 | G106: 83 | H106: 110 | I106: 54 | J106: 96 | K106: 58 | L106: 37 | M106: 49 | N106: 74
A107: Salud | B107: 15 | C107: 180 | D107: 370 | E107: 371 | F107: 425 | G107: 447 | H107: 544 | I107: 537 | J107: 457 | K107: 356 | L107: 360 | M107: 313 | N107: 340
A108: SANDWI | D108: 11.21 | E108: 47.49 | F108: 52.47 | G108: 24 | H108: 84 | I108: 18 | J108: 12 | K108: 0 | L108: 8 | M108: 12 | N108: 52
A109: Sasona | B109: 2 | C109: 14 | D109: 16 | E109: 4 | F109: 7 | G109: 4 | H109: 0 | I109: 9 | J109: 8 | K109: 0 | L109: 0 | M109: ? | N109: ? | O109: ESPECI
A110: Snac n | B110: 60 | C110: 154 | D110: 114 | E110: 117 | F110: 72 | G110: 37 | H110: 15 | I110: 23 | J110: 11 | K110: ? | M110: ? | N110: ? | O110: SNACK
A111: Snack | B111: 197 | C111: 270 | D111: 257 | E111: 295 | F111: 277 | G111: 319 | H111: 432 | I111: 396 | J111: 419 | K111: 315 | L111: 274 | M111: 257 | N111: 258
A112: Sopa | B112: 5 | C112: 10 | D112: 23 | E112: 22 | F112: 16 | G112: 15 | H112: 9 | I112: 17 | J112: 5 | K112: 0 | L112: 0 | M112: ? | N112: ? | O112: SOYA
A113: SOYA | C113: 14 | D113: 18 | E113: 13 | F113: 21 | G113: 18 | H113: 17 | I113: 15 | J113: 14 | K113: 18 | L113: 17 | M113: 11 | N113: 27
A114: Stevia | B114: 9 | C114: 22 | D114: 16 | E114: 20 | F114: 23 | G114: 23 | H114: 47 | I114: 50 | J114: 30 | K114: 27 | L114: 50 | M114: 17 | N114: 25
A115: TAMALE | F115: 152 | G115: 154 | H115: 99 | I115: 61 | J115: 133 | K115: 120 | L115: 115 | M115: 151 | N115: 72
A116: Tapena | B116: 18 | C116: 27 | D116: 28 | E116: 41 | F116: 51 | G116: 31 | H116: 37 | I116: 28 | J116: 42 | K116: 24 | L116: 34 | M116: 27 | N116: 27
A117: Te | B117: 22 | C117: 99 | D117: 110 | E117: 148 | F117: 172 | G117: 142 | H117: 209 | I117: 131 | J117: 122 | K117: 73 | L117: 51 | M117: 49 | N117: 70
A118: Te ver | C118: 11 | D118: 35 | E118: 34 | F118: 44 | G118: 23 | H118: 26 | I118: 21 | J118: ? | K118: ? | N118: ? | O118: INFU
A119: Thika | B119: 98 | C119: 83 | D119: 49 | E119: 51 | F119: 37 | G119: 23 | H119: 8 | I119: 15 | J119: 36 | K119: 25 | L119: 19 | M119: 38 | N119: 35
A120: TRUCHA | H120: 6.69 | I120: 0 | J120: 0 | K120: 0 | L120: 0 | M120: 6.05 | N120: 1.89
A121: TURRON | E121: 3 | F121: 27 | G121: 32 | H121: 38 | I121: 16 | J121: 9 | K121: 2 | L121: 1 | M121: 0 | N121: ? | O121: PAS DE MODIF
A122: Tostad | B122: 3 | C122: 41 | D122: ? | E122: ? | F122: ? | G122: ? | H122: ? | I122: ? | J122: ? | K122: ? | O122: PAN
A123: Verdur | B123: 94.43 | C123: 152.89 | D123: 25.67 | E123: 177.38 | F123: 142 | G123: 76.97 | H123: 56.16 | I123: 15 | J123: 3 | K123: 0 | L123: 0 | M123: 0 | N123: 17 | O123: PAS DE MODIF
A124: Vinagr | B124: 8 | C124: 6 | D124: 8 | E124: 16 | F124: 8 | G124: 9 | H124: 17 | I124: 18 | J124: 22 | K124: 11 | L124: 20 | M124: 19 | N124: 18
A125: Vino | C125: 1 | D125: ? | E125: ? | F125: ? | G125: ? | H125: ? | I125: ? | J125: ? | K125: ? | O125: LICOR
A126: Vino R | B126: 4 | C126: 5 | D126: ? | E126: ? | F126: ? | G126: ? | H126: ? | I126: ? | J126: ? | K126: ? | O126: LICOR
A127: Vino T | B127: 4 | C127: 9 | D127: ? | E127: ? | F127: ? | G127: ? | H127: ? | I127: ? | J127: ? | K127: ? | O127: LICOR
A128: YOGUR | D128: 129 | E128: 230 | F128: 239 | G128: 250 | H128: 328 | I128: 331 | J128: 227 | K128: 189 | L128: 245 | M128: 295 | N128: 353
A129: Yog re | B129: 11 | C129: ? | D129: ? | E129: ? | F129: ? | G129: ? | H129: ? | I129: ? | J129: ? | K129: ? | O129: YOGUR
A130: Yogurt | B130: 75 | C130: 213 | D130: 165 | E130: 13 | F130: ? | G130: 22 | H130: ? | I130: ? | J130: ? | K130: ? | O130: YOGUR
A133: TOTAL PRODUCTOS VENDIDOS | B133: 5148.56 | C133: 10878.21 | D133: 12902.28 | E133: 14485.12 | F133: 15166.98 | G133: 14662.74 | H133: 15831.05 | I133: 13524.07 | J133: 12641.14 | K133: 11563.33 | L133: 11162.95 | M133: 10955.62 | N133: 11859.34

Sheet NOUVELLES CAT
A1: TOTAL VENTAS / CATEGORIA | B1: abr-15 | C1: may-15 | D1: jun-15 | E1: jul-15 | F1: ago-15 | G1: sept-15 | H1: oct-15 | I1: nov-15 | J1: dic-15 | K1: ene-16 | L1: feb-16 | M1: mar-16 | N1: abr-16 | O1: NOUVELLE CAT.
A3: Aceite | B3: 47 | C3: 71 | D3: 87 | E3: 103 | F3: 113 | G3: 121 | H3: 163 | I3: 137 | J3: 128 | K3: 95 | L3: 94 | M3: 88 | N3: 118
A4: Aceitunas | B4: 22 | C4: 19 | D4: 20 | E4: 26 | F4: 51 | G4: 25 | H4: 30 | I4: 16 | J4: 21 | K4: 27 | L4: 15 | M4: 37 | N4: 64
A5: Agua | B5: 207 | C5: 344 | D5: 363 | E5: 344 | F5: 312 | G5: 422 | H5: 573 | I5: 417 | J5: 463 | K5: 506 | L5: 629 | M5: 545 | N5: 442
A6: AGUARD | D6: DONE | E6: DONE | F6: DONE | G6: DONE | H6: DONE | I6: DONE | J6: DONE | K6: DONE | L6: DONE | M6: DONE | N6: DONE | O6: LICOR
A7: Algarr | B7: 6 | C7: 10 | D7: 6 | E7: 22 | F7: 17 | G7: 16 | H7: 16 | I7: 16 | J7: 18 | K7: 11 | L7: 9 | M7: 18 | N7: 14
A8: Arroz | B8: 29 | C8: 39 | D8: 97 | E8: 74 | F8: 80 | G8: 98 | H8: 80 | I8: 62 | J8: 31 | K8: 35 | L8: 22 | M8: 33 | N8: 39
A9: Artesa | B9: 53 | C9: 199 | D9: 186 | E9: 158 | F9: 121 | G9: 145 | H9: 159 | I9: 191 | J9: 253 | K9: 93 | L9: 35 | M9: 70 | N9: 66
A10: Atun | B10: 26 | C10: 82 | D10: 61 | E10: 64 | F10: 42 | G10: 69 | H10: 91 | I10: 54 | J10: 26 | K10: 24 | L10: 8 | M10: 24 | N10: 21
A11: Azucar | B11: 11 | C11: 35 | D11: 32 | E11: 51 | F11: 44 | G11: 4 | H11: 15 | I11: 13 | J11: 16 | K11: 13 | L11: 9 | M11: 13 | N11: 21
A12: BARRAE | C12: 1 | D12: ? | E12: 31 | F12: 10 | G12: 62 | H12: 54 | I12: 39 | J12: 9 | K12: 10 | L12: 1 | M12: 21 | N12: 30
A13: Beb Na | B13: 391 | C13: 756 | D13: 753 | E13: 659 | F13: 775 | G13: 684 | H13: 689 | I13: 603 | J13: 607 | K13: 645 | L13: 640 | M13: 744 | N13: 789
A14: Bisute | D14: DONE | E14: DONE | F14: DONE | G14: DONE | H14: DONE | I14: DONE | J14: DONE | K14: DONE | L14: DONE | M14: DONE | N14: DONE | O14: ARTESA
A15: Bebida | B15: DONE | C15: DONE | D15: DONE | E15: DONE | F15: DONE | G15: DONE | H15: DONE | I15: DONE | J15: DONE | K15: DONE | L15: DONE | M15: DONE | N15: DONE | O15: GASEOSA
A16: BOLSAS | C16: 15 | D16: 37 | E16: 32 | F16: 28 | G16: 20 | H16: 33 | I16: 22 | J16: 59 | K16: 7 | L16: 5 | M16: 5 | N16: 8
A17: CACAO | D17: 16 | E17: 30 | F17: 22 | G17: 27 | H17: 30 | I17: 46 | J17: 45 | K17: 30 | L17: 22 | M17: 21 | N17: 14
A18: Café | B18: 16 | C18: 75 | D18: 91 | E18: 189 | F18: 207 | G18: 144 | H18: 104 | I18: 115 | J18: 114 | K18: 58 | L18: 54 | M18: 69 | N18: 87
A19: CANAST | J19: 5 | K19: 0 | L19: 0 | M19: 0 | N19: 5 | O19: PAS DE MODIF
A20: CAJA | F20: DONE | G20: DONE | H20: DONE | I20: DONE | J20: DONE | K20: DONE | L20: DONE | M20: DONE | N20: DONE | O20: ARTESA
A21: CARBON | D21: 1 | E21: 2 | F21: 4 | G21: 2 | H21: 1 | I21: 1 | J21: 2 | K21: 4 | L21: 2 | M21: 1 | N21: 1
A22: Carne | B22: 24.06 | C22: =52.91+8.81 -> 61.72 | D22: 22.87 | E22: 25.42 | F22: 50.24 | G22: 27.84 | H22: 1.7 | I22: 0 | J22: 7.48 | K22: 0 | L22: 0 | M22: 0 | N22: 0 | O22: PAS DE MODIF
A23: Cereal | B23: 27 | C23: 48 | D23: 78 | E23: 202 | F23: 188 | G23: 138 | H23: 136 | I23: 130 | J23: 86 | K23: 117 | L23: 124 | M23: 144 | N23: 121
A24: Cerv (A+R) | B24: 109 | C24: 231 | D24: 305 | E24: 280 | F24: 347 | G24: 470 | H24: 609 | I24: 438 | J24: 696 | K24: 400 | L24: 447 | M24: 380 | N24: 398
A25: Chanca | B25: DONE | C25: DONE | D25: DONE | E25: DONE | F25: DONE | G25: DONE | H25: DONE | I25: DONE | J25: DONE | K25: DONE | L25: DONE | M25: DONE | N25: DONE | O25: MIEL
A26: Chia | B26: DONE | C26: DONE | D26: DONE | E26: DONE | F26: DONE | G26: DONE | H26: DONE | I26: DONE | J26: DONE | K26: DONE | L26: DONE | M26: DONE | N26: DONE | O26: COMPLE
A27: Choco | B27: DONE | C27: DONE | D27: DONE | E27: DONE | F27: DONE | G27: DONE | H27: DONE | I27: DONE | J27: DONE | K27: DONE | L27: DONE | M27: DONE | N27: DONE | O27: CHOCOL
A28: Chocol | B28: 265 | C28: 719 | D28: 890 | E28: 1272 | F28: 1337 | G28: 1156 | H28: 1364 | I28: 1188 | J28: 1250 | K28: 618 | L28: 544 | M28: 539 | N28: 582
A29: Chuño | B29: DONE | C29: DONE | D29: DONE | E29: DONE | F29: DONE | G29: DONE | H29: DONE | I29: DONE | J29: DONE | K29: DONE | L29: DONE | M29: DONE | N29: DONE | O29: COMPLE
A30: Coctel | B30: DONE | C30: DONE | D30: DONE | E30: DONE | F30: DONE | G30: DONE | H30: DONE | I30: DONE | J30: DONE | K30: DONE | L30: DONE | M30: DONE | N30: DONE | O30: LICOR
A31: Colage | C31: DONE | D31: DONE | E31: DONE | F31: DONE | G31: DONE | H31: DONE | I31: DONE | J31: DONE | K31: DONE | L31: DONE | M31: DONE | N31: DONE | O31: SALUD
A32: Comple | B32: 156 | C32: 441 | D32: 510 | E32: 578 | F32: 610 | G32: 550 | H32: 685 | I32: 664 | J32: 490 | K32: 551 | L32: 575 | M32: 614 | N32: 658
A33: Condim | B33: DONE | C33: DONE | D33: DONE | E33: DONE | F33: DONE | G33: DONE | H33: DONE | I33: DONE | J33: DONE | K33: DONE | L33: DONE | M33: DONE | N33: DONE | O33: ESPECI
A34: Conserv | B34: 10 | C34: 28 | D34: 26 | E34: 36 | F34: 56 | G34: 20 | H34: 14 | I34: 21 | J34: 26 | K34: 17 | L34: 12 | M34: 30 | N34: 39
A35: CUIDAD | D35: DONE | E35: DONE | F35: DONE | G35: DONE | H35: DONE | I35: DONE | J35: DONE | K35: DONE | L35: DONE | M35: DONE | N35: DONE | O35: SALUD
A36: D'GUS | D36: 12.45 | E36: 0 | F36: 0 | G36: 0 | H36: 0 | I36: 0 | J36: 0 | K36: 0 | L36: 0 | M36: 0 | N36: 0 | O36: PAS DE MODIF
A37: Dulce (R+T) | B37: 88 | C37: 175 | D37: 34 | E37: 328 | F37: 401 | G37: 377 | H37: 418 | I37: 266 | J37: 249 | K37: 121 | L37: 111 | M37: 74 | N37: 40
A38: Emb re | B38: DONE | C38: DONE | D38: DONE | E38: DONE | F38: DONE | G38: DONE | H38: DONE | I38: DONE | J38: DONE | K38: DONE | L38: DONE | M38: DONE | N38: DONE | O38: EMBUTI
A39: Embuti | B39: 154.24 | C39: 255.12 | D39: 284.62 | E39: 218.19 | F39: 157.83 | G39: 172.06 | H39: 222.15 | I39: 167.21 | J39: 166.47 | K39: 138.41 | L39: 117.47 | M39: 129.54 | N39: 202.02
A40: Encurt | B40: 11 | C40: 23 | D40: 14 | E40: 19 | F40: 13 | G40: 8 | H40: 4 | I40: 4 | J40: 8 | K40: 2 | L40: 4 | M40: 2 | N40: 3
A41: ENSALA | E41: 2 | F41: 2 | G41: 4 | H41: ? | I41: 1 | J41: 2 | K41: 3 | L41: 6 | M41: 5 | N41: 11
A42: ESCENC | C42: 5 | D42: 4 | E42: 5 | F42: 6 | G42: 8 | H42: 7 | I42: 3 | J42: ? | K42: ? | L42: ? | M42: ? | N42: ? | O42: X
A43: Especi | B43: 32 | C43: 78 | D43: 87 | E43: 69 | F43: 99 | G43: 62 | H43: 71 | I43: 56 | J43: 75 | K43: 50 | L43: 44 | M43: 38 | N43: 51
A44: ESPUMA | C44: DONE | D44: DONE | E44: DONE | F44: DONE | G44: DONE | H44: DONE | I44: DONE | J44: DONE | K44: DONE | L44: DONE | M44: DONE | N44: DONE | O44: LICOR
A45: FIDEOS | C45: 35 | D45: 41 | E45: 29 | F45: 50 | G45: 49 | H45: 58 | I45: 40 | J45: 41 | K45: 27 | L45: 33 | M45: 34 | N45: 39
A46: Filtra | B46: DONE | C46: DONE | D46: DONE | E46: DONE | F46: DONE | G46: DONE | H46: DONE | I46: DONE | J46: DONE | K46: DONE | L46: DONE | M46: DONE | N46: DONE | O46: INFU
A47: Frijol | B47: DONE | C47: DONE | D47: DONE | E47: DONE | F47: DONE | G47: DONE | H47: DONE | I47: DONE | J47: DONE | K47: DONE | L47: DONE | M47: DONE | N47: DONE | O47: COMPLE
A48: Frutas | B48: 560.1 | C48: 599.89 | D48: 1019.61 | E48: 1091.55 | F48: 932.94 | G48: 1025.27 | H48: 1071.54 | I48: 1102.47 | J48: 766.2 | K48: 706.8 | L48: 631.01 | M48: 640.1 | N48: 707.63
A49: FUXION | F49: 4 | G49: 26 | H49: 5 | I49: 3 | J49: 1 | K49: 2 | L49: 5 | M49: 8 | N49: 2
A50: GALLE | B50: 151 | C50: 579 | D50: 856 | E50: 823 | F50: 1207 | G50: 1208 | H50: 1203 | I50: 1076 | J50: 867 | K50: 609 | L50: 663 | M50: 707 | N50: 915
A51: Gallet | B51: DONE | C51: DONE | D51: DONE | E51: DONE | F51: DONE | G51: DONE | H51: DONE | I51: DONE | J51: DONE | K51: DONE | L51: DONE | M51: DONE | N51: DONE | O51: GALLE
A52: Gaseos | B52: 333 | C52: 954 | D52: 778 | E52: 691 | F52: 516 | G52: 570 | H52: 632 | I52: 506 | J52: 567 | K52: 516 | L52: 579 | M52: 575 | N52: 624
A53: GELATI | C53: 3 | D53: 5 | E53: 3 | F53: 11 | G53: 16 | H53: 8 | I53: 2 | J53: 0 | K53: 0 | L53: 16 | M53: 11 | N53: 72
A54: GIANIN | D54: 213 | E54: 274 | F54: 205 | G54: 83 | H54: 126 | I54: 94 | J54: 93 | K54: 23 | L54: 201 | M54: 198 | N54: 155
A55: Golosi | B55: 216 | C55: 287 | D55: 105 | E55: 124 | F55: 139 | G55: 233 | H55: 228 | I55: 91 | J55: 50 | K55: 52 | L55: 37 | M55: 30 | N55: 43
A56: Gr Arr | C56: DONE | D56: DONE | E56: DONE | F56: DONE | G56: DONE | H56: DONE | I56: DONE | J56: DONE | K56: DONE | L56: DONE | M56: DONE | N56: DONE | O56: GR A + R
A57: Gran A+R | B57: 38.44 | C57: 45.71 | D57: 46 | E57: 60.64 | F57: 67 | G57: 41 | H57: 35 | I57: 44 | J57: 28 | K57: 22 | L57: 14 | M57: 21 | N57: 19
A58: Granol | B58: 3 | C58: 29 | D58: 46 | E58: 54 | F58: 60 | G58: 83 | H58: 68 | I58: 72 | J58: 66 | K58: 52 | L58: 63 | M58: 84 | N58: 162
A59: Harina | D59: 5 | E59: 10 | F59: 26 | G59: 17 | H59: 12 | I59: 14 | J59: 9 | K59: 18 | L59: 16 | M59: 7 | N59: 17
A60: Helado | B60: 78 | C60: 493 | D60: 596 | E60: 632 | F60: 723 | G60: 664 | H60: 1038 | I60: 933 | J60: 1028 | K60: 2186 | L60: 2013 | M60: 1989 | N60: 1620
A61: HIELO | F61: 7 | G61: 9 | H61: 7 | I61: 14 | J61: 0 | K61: 0 | L61: 0 | M61: 0 | N61: ? | O61: X
A62: Hongos | C62: 1 | D62: 0 | E62: 0 | F62: 0 | G62: 0 | H62: 2 | I62: 4 | J62: 1 | K62: 1 | L62: 0 | M62: 1 | N62: ?
A63: Huevo | B63: 12.12 | C63: 36.84 | D63: 59.22 | E63: 84.97 | F63: 93 | G63: 103 | H63: 81 | I63: 76 | J63: 49 | K63: 51 | L63: 60 | M63: 70 | N63: 66
A64: INFUSI | B64: 19 | C64: 46 | D64: 35 | E64: 34 | F64: 44 | G64: 23 | H64: 26 | I64: 63 | J64: 121 | K64: 48 | L64: 84 | M64: 93 | N64: 108
A65: Instan | B65: DONE | C65: DONE | D65: DONE | E65: DONE | F65: DONE | G65: DONE | H65: DONE | I65: DONE | J65: DONE | K65: DONE | L65: DONE | M65: DONE | N65: DONE | O65: COMPLE
A66: Jalea | C66: 1 | D66: 0 | E66: 1 | F66: 1 | G66: 1 | H66: 7 | I66: 3 | J66: 0 | K66: 2 | L66: 5 | M66: 5 | N66: 7
A67: KINGKO | C67: 76 | D67: 94 | E67: 261 | F67: 357 | G67: 276 | H67: 385 | I67: 237 | J67: 239 | K67: 225 | L67: 121 | M67: 125 | N67: 250
A68: LA COC | G68: 572.9 | O68: X
A69: LA CAS | L69: DONE | M69: DONE | N69: DONE | O69: GIANIN
A70: Leche | B70: 29 | C70: 107 | D70: 95 | E70: 166 | F70: 149 | G70: 136 | H70: 173 | I70: 108 | J70: 46 | K70: 35 | L70: 54 | M70: 45 | N70: 82
A71: Leche C | B71: 3 | D71: 3 | E71: 10 | F71: 11 | G71: 3 | H71: 7 | I71: 1 | J71: 2 | K71: 1 | L71: 1 | M71: 0 | N71: 0
A72: Lic de | C72: DONE | D72: DONE | E72: DONE | F72: DONE | G72: DONE | H72: DONE | I72: DONE | J72: DONE | K72: DONE | L72: DONE | M72: DONE | N72: DONE | O72: LICOR
A73: Lic ex | B73: DONE | C73: DONE | D73: DONE | E73: DONE | F73: DONE | G73: DONE | H73: DONE | I73: DONE | J73: DONE | K73: DONE | L73: DONE | M73: DONE | N73: DONE | O73: LICOR
A74: Lic Re | B74: DONE | C74: DONE | D74: DONE | E74: DONE | F74: DONE | G74: DONE | H74: DONE | I74: DONE | J74: DONE | K74: DONE | L74: DONE | M74: DONE | N74: DONE | O74: LICOR
A75: LICOR | B75: 48 | C75: 116 | D75: 161 | E75: 155 | F75: 136 | G75: 149 | H75: 225 | I75: 147 | J75: 286 | K75: 109 | L75: 121 | M75: 90 | N75: 123
A76: Manjar | B76: 33 | C76: 36 | D76: 75 | E76: 143 | F76: 92 | G76: 47 | H76: 61 | I76: 47 | J76: 42 | K76: 24 | L76: 25 | M76: 25 | N76: 53
A77: Manteq | B77: 8 | C77: 29 | D77: 56 | E77: 80 | F77: 80 | G77: 73 | H77: 55 | I77: 41 | J77: 42 | K77: 32 | L77: 28 | M77: 47 | N77: 62
A78: Medici | B78: DONE | C78: DONE | D78: DONE | E78: DONE | F78: DONE | G78: DONE | H78: DONE | I78: DONE | J78: DONE | K78: DONE | L78: DONE | M78: DONE | N78: DONE | O78: SALUD
A79: Melaza | B79: 2 | C79: ? | D79: ? | E79: ? | F79: 3 | G79: 3 | H79: 1 | I79: 2 | J79: 3 | K79: 2 | L79: 0 | M79: 1 | N79: 2
A80: Menest | B80: 7.35 | C80: 38.76 | D80: 35.76 | E80: 32.02 | F80: 29.86 | G80: 50.81 | H80: 36.55 | I80: 46.61 | J80: 20.46 | K80: 15 | L80: 26 | M80: 18 | N80: 10
A81: MER.D | C81: DONE | D81: DONE | E81: DONE | F81: DONE | G81: DONE | H81: DONE | I81: DONE | J81: DONE | K81: DONE | L81: DONE | M81: DONE | N81: DONE | O81: Mermel
A82: Merm R | B82: DONE | C82: DONE | D82: DONE | E82: DONE | F82: DONE | G82: DONE | H82: DONE | I82: DONE | J82: DONE | K82: DONE | L82: DONE | M82: DONE | N82: DONE | O82: Mermel
A83: Mermel | B83: 23 | C83: 28 | D83: 45 | E83: 63 | F83: 261 | G83: 134 | H83: 125 | I83: 110 | J83: 130 | K83: 69 | L83: 121 | M83: 69 | N83: 92
A84: Miel | B84: 21 | C84: 59 | D84: 77 | E84: 84 | F84: 84 | G84: 95 | H84: 81 | I84: 103 | J84: 89 | K84: 78 | L84: 77 | M84: 76 | N84: 89
A85: MOUSEE | N85: DONE | O85: Conserv
A86: Natill | B86: 3 | C86: 3 | D86: 12 | E86: 16 | F86: 9 | G86: 6 | H86: 6 | I86: 9 | J86: 2 | K86: 9 | L86: 0 | M86: 0 | N86: 0 | O86: X
A87: PADDIN | E87: 9 | F87: 11 | G87: 8 | H87: 2 | I87: 0 | J87: 3 | K87: 2 | L87: 1 | M87: 0 | N87: 0
A88: Pan | B88: 986 | C88: 1780 | D88: 2363 | E88: 2305 | F88: 2228 | G88: 1694 | H88: 1737 | I88: 1563 | J88: 1095 | K88: 1561 | L88: 1093 | M88: 762 | N88: 1012
A89: PANELA | D89: 11 | E89: 18 | F89: 36 | G89: 60 | H89: 35 | I89: 45 | J89: 28 | K89: 12 | L89: 31 | M89: 26 | N89: 37
A90: PANETO | G90: DONE | H90: DONE | I90: DONE | J90: DONE | K90: DONE | L90: DONE | M90: DONE | N90: DONE | O90: PAN
A91: Pap Hi | B91: 22 | C91: 44 | D91: 74 | E91: 71 | F91: 48 | G91: 54 | H91: 39 | I91: 5 | J91: 20 | K91: 11 | L91: 3 | M91: 2 | N91: 0
A92: Papel | B92: DONE | C92: DONE | D92: DONE | E92: DONE | F92: DONE | G92: DONE | H92: DONE | I92: DONE | J92: DONE | K92: DONE | L92: DONE | M92: DONE | N92: DONE | O92: PAPELR
A93: PAPELR | B93: 12 | C93: 29 | D93: 4 | E93: 2 | F93: 17 | G93: 1 | H93: 14 | I93: 11 | J93: 3 | K93: 0 | M93: ? | N93: 5
A94: Pikeo | B94: DONE | C94: DONE | D94: DONE | E94: DONE | F94: DONE | G94: DONE | H94: DONE | I94: DONE | J94: DONE | K94: DONE | L94: DONE | M94: DONE | N94: DONE | O94: PIQUEO
A95: Piqueo | B95: 94 | C95: 108 | D95: 144 | E95: 222 | F95: 139 | G95: 98 | H95: 57 | I95: 48 | J95: 5 | K95: 1 | L95: 0 | M95: 0 | N95: 0
A96: Pisco | B96: DONE | C96: DONE | D96: DONE | E96: DONE | F96: DONE | G96: DONE | H96: DONE | I96: DONE | J96: DONE | K96: DONE | L96: DONE | M96: DONE | N96: DONE | O96: LICOR
A97: Polen | B97: DONE | C97: DONE | D97: DONE | E97: DONE | F97: DONE | G97: DONE | H97: DONE | I97: DONE | J97: DONE | K97: DONE | L97: DONE | M97: DONE | N97: DONE | O97: THIKA THANI
A98: Pollich | B98: 2 | C98: NM | D98: NM | E98: NM | F98: NM | G98: NM | H98: NM | I98: NM | J98: NM | K98: NM | L98: NM | M98: NM | N98: NM | O98: X
A99: POLLO | C99: DONE | D99: DONE | E99: DONE | F99: DONE | G99: DONE | H99: DONE | I99: DONE | J99: DONE | K99: DONE | L99: DONE | M99: DONE | N99: DONE | O99: CARNE
A100: PULPAS | L100: 25 | M100: 7 | N100: 3
A101: Queso | B101: 48.82 | C101: 157.28 | D101: 257.87 | E101: 272.46 | F101: 269.64 | G101: 277.89 | H101: 253.26 | I101: 243.78 | J101: 163.53 | K101: 95.12 | L101: 108.47 | M101: 125.93 | N101: 126.8
A102: QUINLO | C102: 26 | D102: 22 | E102: 25 | F102: 27 | G102: 45 | H102: 37 | I102: 31 | J102: 21 | K102: 23 | L102: 18 | M102: 27 | N102: 30
A103: Quinua | B103: 1 | C103: ? | D103: ? | E103: 2 | F103: 12 | G103: 20 | H103: 33 | I103: 16 | J103: 13 | K103: 6 | L103: 10 | M103: 7 | N103: 5
A104: Ron | B104: DONE | C104: DONE | D104: DONE | E104: DONE | F104: DONE | G104: DONE | H104: DONE | I104: DONE | J104: DONE | K104: DONE | L104: DONE | M104: DONE | N104: DONE | O104: LICOR
A105: Sal | B105: 57 | C105: 111 | D105: 161 | E105: 179 | F105: 195 | G105: 162 | H105: 222 | I105: 177 | J105: 210 | K105: 144 | L105: 119 | M105: 141 | N105: 127
A106: Salsa (R+P + SALSAS) | B106: 34 | C106: 65 | D106: 45 | E106: 53 | F106: 74 | G106: 83 | H106: 110 | I106: 54 | J106: 96 | K106: 58 | L106: 37 | M106: 49 | N106: 74
A107: Salud | B107: 19 | C107: 191 | D107: 386 | E107: 389 | F107: 430 | G107: 455 | H107: 556 | I107: 537 | J107: 457 | K107: 356 | L107: 360 | M107: 313 | N107: 340
A108: SANDWI | D108: 11.21 | E108: 47.49 | F108: 52.47 | G108: 24 | H108: 84 | I108: 18 | J108: 12 | K108: 0 | L108: 8 | M108: 12 | N108: 52
A109: Sasona | B109: DONE | C109: DONE | D109: DONE | E109: DONE | F109: DONE | G109: DONE | H109: DONE | I109: DONE | J109: DONE | K109: DONE | L109: DONE | M109: DONE | N109: DONE | O109: ESPECI
A110: Snac n | B110: DONE | C110: DONE | D110: DONE | E110: DONE | F110: DONE | G110: DONE | H110: DONE | I110: DONE | J110: DONE | K110: DONE | L110: DONE | M110: DONE | N110: DONE | O110: SNACK
A111: Snack | B111: 257 | C111: 424 | D111: 371 | E111: 412 | F111: 349 | G111: 356 | H111: 447 | I111: 419 | J111: 430 | K111: 315 | L111: 274 | M111: 257 | N111: 258
A112: Sopa | B112: DONE | C112: DONE | D112: DONE | E112: DONE | F112: DONE | G112: DONE | H112: DONE | I112: DONE | J112: DONE | K112: DONE | L112: DONE | M112: DONE | N112: DONE | O112: SOYA
A113: SOYA | B113: 5 | C113: 24 | D113: 41 | E113: 35 | F113: 37 | G113: 33 | H113: 26 | I113: 32 | J113: 19 | K113: 18 | L113: 17 | M113: 11 | N113: 27
A114: Stevia | B114: 9 | C114: 22 | D114: 16 | E114: 20 | F114: 23 | G114: 23 | H114: 47 | I114: 50 | J114: 30 | K114: 27 | L114: 50 | M114: 17 | N114: 25
A115: TAMALE | F115: 152 | G115: 154 | H115: 99 | I115: 61 | J115: 133 | K115: 120 | L115: 115 | M115: 151 | N115: 72
A116: Tapena | B116: 18 | C116: 27 | D116: 28 | E116: 41 | F116: 51 | G116: 31 | H116: 37 | I116: 28 | J116: 42 | K116: 24 | L116: 34 | M116: 27 | N116: 27
A117: Te | B117: 22 | C117: 99 | D117: 110 | E117: 148 | F117: 172 | G117: 142 | H117: 209 | I117: 131 | J117: 122 | K117: 73 | L117: 51 | M117: 49 | N117: 70
A118: Te ver | B118: DONE | C118: DONE | D118: DONE | E118: DONE | F118: DONE | G118: DONE | H118: DONE | I118: DONE | J118: DONE | K118: DONE | L118: DONE | M118: DONE | N118: DONE | O118: INFU
A119: Thika | B119: 101 | C119: 85 | D119: 53 | E119: 53 | F119: 37 | G119: 23 | H119: 8 | I119: 15 | J119: 36 | K119: 25 | L119: 19 | M119: 38 | N119: 35
A120: TRUCHA | H120: 6.69 | I120: 0 | J120: 0 | K120: 0 | L120: 0 | M120: 6.05 | N120: 1.89
A121: TURRON | E121: 3 | F121: 27 | G121: 32 | H121: 38 | I121: 16 | J121: 9 | K121: 2 | L121: 1 | M121: 0 | N121: 0 | O121: PAS DE MODIF
A122: Tostad | B122: DONE | C122: DONE | D122: DONE | E122: DONE | F122: DONE | G122: DONE | H122: DONE | I122: DONE | J122: DONE | K122: DONE | L122: DONE | M122: DONE | N122: DONE | O122: PAN
A123: Verdur | B123: 94.43 | C123: 152.89 | D123: 25.67 | E123: 177.38 | F123: 142 | G123: 76.97 | H123: 56.16 | I123: 15 | J123: 3 | K123: 0 | L123: 0 | M123: 0 | N123: 17 | O123: PAS DE MODIF
A124: Vinagr | B124: 8 | C124: 6 | D124: 8 | E124: 16 | F124: 8 | G124: 9 | H124: 17 | I124: 18 | J124: 22 | K124: 11 | L124: 20 | M124: 19 | N124: 18
A125: Vino | B125: DONE | C125: DONE | D125: DONE | E125: DONE | F125: DONE | G125: DONE | H125: DONE | I125: DONE | J125: DONE | K125: DONE | L125: DONE | M125: DONE | N125: DONE | O125: LICOR
A126: Vino R | B126: DONE | C126: DONE | D126: DONE | E126: DONE | F126: DONE | G126: DONE | H126: DONE | I126: DONE | J126: DONE | K126: DONE | L126: DONE | M126: DONE | N126: DONE | O126: LICOR
A127: Vino T | B127: DONE | C127: DONE | D127: DONE | E127: DONE | F127: DONE | G127: DONE | H127: DONE | I127: DONE | J127: DONE | K127: DONE | L127: DONE | M127: DONE | N127: DONE | O127: LICOR
A128: YOGUR | B128: 86 | C128: 213 | D128: 294 | E128: 243 | F128: 239 | G128: 272 | H128: 328 | I128: 331 | J128: 227 | K128: 189 | L128: 245 | M128: 295 | N128: 353
A129: Yog re | B129: DONE | C129: DONE | D129: DONE | E129: DONE | F129: DONE | G129: DONE | H129: DONE | I129: DONE | J129: DONE | K129: DONE | L129: DONE | M129: DONE | N129: DONE | O129: YOGUR
A130: Yogurt | B130: DONE | C130: DONE | D130: DONE | E130: DONE | F130: DONE | G130: DONE | H130: DONE | I130: DONE | J130: DONE | K130: DONE | L130: DONE | M130: DONE | N130: DONE | O130: YOGUR
A133: TOTAL PRODUCTOS VENDIDOS | B133: =SUM(B2:B131) -> 5148.56 | C133: =SUM(C2:C131) -> 10878.21 | D133: 12902.28 | E133: 14485.12 | F133: 15166.98 | G133: 14662.74 | H133: 15831.05 | I133: 13524.07 | J133: 12641.14 | K133: 11563.33 | L133: 11162.95 | M133: 10955.62 | N133: 11859.34
A135: TOTAL PRODUCTOS VENDIDOS | B135: 5148.56 | C135: 10878.21 | D135: 12902.28 | E135: 14485.12 | F135: 15166.98 | G135: 14662.74 | H135: 15831.05 | I135: 13524.07 | J135: 12641.14 | K135: 11563.33 | L135: 11162.95 | M135: 10955.62 | N135: 11859.34

Sheet FINAL
A1: TOTAL VENTAS / CATEGORIA | B1: abr-15 | C1: may-15 | D1: jun-15 | E1: jul-15 | F1: ago-15 | G1: sept-15 | H1: oct-15 | I1: nov-15 | J1: dic-15 | K1: ene-16 | L1: feb-16 | M1: mar-16 | N1: abr-16 | Q1: MEDIANA | S1: DISPERSION
A2: Aceite | B2: 47 | C2: 71 | D2: 87 | E2: 103 | F2: 113 | G2: 121 | H2: 163 | I2: 137 | J2: 128 | K2: 95 | L2: 94 | M2: 88 | N2: 118 | Q2: =AVERAGE(VENTAS[[#This Row],[may-15]:[abr-16]]) -> 109.8333333 | R2: =_xlfn.STDEV.P(VENTAS[[#This Row],[may-15]:[abr-16]]) -> 24.35786435 | S2: =R2/Q2 -> 0.2217711473
A3: Aceitunas | B3: 22 | C3: 19 | D3: 20 | E3: 26 | F3: 51 | G3: 25 | H3: 30 | I3: 16 | J3: 21 | K3: 27 | L3: 15 | M3: 37 | N3: 64 | Q3: =AVERAGE(VENTAS[[#This Row],[may-15]:[abr-16]]) -> 29.25 | R3: =_xlfn.STDEV.P(VENTAS[[#This Row],[may-15]:[abr-16]]) -> 14.17818159 | S3: =R3/Q3 -> 0.4847241571
A4: Agua | B4: 207 | C4: 344 | D4: 363 | E4: 344 | F4: 312 | G4: 422 | H4: 573 | I4: 417 | J4: 463 | K4: 506 | L4: 629 | M4: 545 | N4: 442 | Q4: =AVERAGE(VENTAS[[#This Row],[may-15]:[abr-16]]) -> 446.6666667 | R4: =_xlfn.STDEV.P(VENTAS[[#This Row],[may-15]:[abr-16]]) -> 95.91170708 | S4: 0.2147277024
A5: Algarr | B5: 6 | C5: 10 | D5: 6 | E5: 22 | F5: 17 | G5: 16 | H5: 16 | I5: 16 | J5: 18 | K5: 11 | L5: 9 | M5: 18 | N5: 14 | Q5: =AVERAGE(VENTAS[[#This Row],[may-15]:[abr-16]]) -> 14.41666667 | R5: =_xlfn.STDEV.P(VENTAS[[#This Row],[may-15]:[abr-16]]) -> 4.36765256 | S5: 0.3029585591
A6: Arroz | B6: 29 | C6: 39 | D6: 97 | E6: 74 | F6: 80 | G6: 98 | H6: 80 | I6: 62 | J6: 31 | K6: 35 | L6: 22 | M6: 33 | N6: 39 | Q6: =AVERAGE(VENTAS[[#This Row],[may-15]:[abr-16]]) -> 57.5 | R6: =_xlfn.STDEV.P(VENTAS[[#This Row],[may-15]:[abr-16]]) -> 26.23451924 | S6: 0.4562525086
A7: Artesa | B7: 53 | C7: 199 | D7: 186 | E7: 158 | F7: 121 | G7: 145 | H7: 159 | I7: 191 | J7: 253 | K7: 93 | L7: 35 | M7: 70 | N7: 66 | Q7: =AVERAGE(VENTAS[[#This Row],[may-15]:[abr-16]]) -> 139.6666667 | R7: =_xlfn.STDEV.P(VENTAS[[#This Row],[may-15]:[abr-16]]) -> 61.67567502 | S7: 0.4415919452
A8: Atun | B8: 26 | C8: 82 | D8: 61 | E8: 64 | F8: 42 | G8: 69 | H8: 91 | I8: 54 | J8: 26 | K8: 24 | L8: 8 | M8: 24 | N8: 21 | Q8: =AVERAGE(VENTAS[[#This Row],[may-15]:[abr-16]]) -> 47.16666667 | R8: =_xlfn.STDEV.P(VENTAS[[#This Row],[may-15]:[abr-16]]) -> 25.65746588 | S8: 0.5439745417
A9: Azucar | B9: 11 | C9: 35 | D9: 32 | E9: 51 | F9: 44 | G9: 4 | H9: 15 | I9: 13 | J9: 16 | K9: 13 | L9: 9 | M9: 13 | N9: 21 | Q9: =AVERAGE(VENTAS[[#This Row],[may-15]:[abr-16]]) -> 22.16666667 | R9: =_xlfn.STDEV.P(VENTAS[[#This Row],[may-15]:[abr-16]]) -> 14.1882189 | S9: 0.6400700256
A10: BARRAE | C10: 1 | D10: ? | E10: 31 | F10: 10 | G10: 62 | H10: 54 | I10: 39 | J10: 9 | K10: 10 | L10: 1 | M10: 21 | N10: 30 | Q10: =AVERAGE(VENTAS[[#This Row],[may-15]:[abr-16]]) -> 24.36363636 | R10: =_xlfn.STDEV.P(VENTAS[[#This Row],[may-15]:[abr-16]]) -> 19.85526139 | S10: 0.8149547586
A11: Beb Na | B11: 391 | C11: 756 | D11: 753 | E11: 659 | F11: 775 | G11: 684 | H11: 689 | I11: 603 | J11: 607 | K11: 645 | L11: 640 | M11: 744 | N11: 789 | Q11: =AVERAGE(VENTAS[[#This Row],[may-15]:[abr-16]]) -> 695.3333333 | R11: =_xlfn.STDEV.P(VENTAS[[#This Row],[may-15]:[abr-16]]) -> 63.18403455 | S11: 0.09086869782
A12: BOLSAS | C12: 15 | D12: 37 | E12: 32 | F12: 28 | G12: 20 | H12: 33 | I12: 22 | J12: 59 | K12: 7 | L12: 5 | M12: 5 | N12: 8 | Q12: =AVERAGE(VENTAS[[#This Row],[may-15]:[abr-16]]) -> 22.58333333 | R12: =_xlfn.STDEV.P(VENTAS[[#This Row],[may-15]:[abr-16]]) -> 15.54272785 | S12: 0.6882388714
A13: CACAO | D13: 16 | E13: 30 | F13: 22 | G13: 27 | H13: 30 | I13: 46 | J13: 45 | K13: 30 | L13: 22 | M13: 21 | N13: 14 | Q13: =AVERAGE(VENTAS[[#This Row],[may-15]:[abr-16]]) -> 27.54545455 | R13: =_xlfn.STDEV.P(VENTAS[[#This Row],[may-15]:[abr-16]]) -> 9.930335858 | S13: 0.3605072424
A14: Café | B14: 16 | C14: 75 | D14: 91 | E14: 189 | F14: 207 | G14: 144 | H14: 104 | I14: 115 | J14: 114 | K14: 58 | L14: 54 | M14: 69 | N14: 87 | Q14: =AVERAGE(VENTAS[[#This Row],[may-15]:[abr-16]]) -> 108.9166667 | R14: =_xlfn.STDEV.P(VENTAS[[#This Row],[may-15]:[abr-16]]) -> 46.99726647 | S14: 0.4314974733
A15: CANAST | J15: 5 | K15: 0 | L15: 0 | M15: 0 | N15: 5 | Q15: =AVERAGE(VENTAS[[#This Row],[may-15]:[abr-16]]) -> 2 | R15: =_xlfn.STDEV.P(VENTAS[[#This Row],[may-15]:[abr-16]]) -> 2.449489743 | S15: 1.224744871 | T15: X
A16: CARBON | D16: 1 | E16: 2 | F16: 4 | G16: 2 | H16: 1 | I16: 1 | J16: 2 | K16: 4 | L16: 2 | M16: 1 | N16: 1 | Q16: =AVERAGE(VENTAS[[#This Row],[may-15]:[abr-16]]) -> 1.909090909 | R16: =_xlfn.STDEV.P(VENTAS[[#This Row],[may-15]:[abr-16]]) -> 1.083306844 | S16: 0.5674464423
A17: Carne | B17: 24.06 | C17: =52.91+8.81 -> 61.72 | D17: 22.87 | E17: 25.42 | F17: 50.24 | G17: 27.84 | H17: 1.7 | I17: 0 | J17: 7.48 | K17: 0 | L17: 0 | M17: 0 | N17: 0 | Q17: =AVERAGE(VENTAS[[#This Row],[may-15]:[abr-16]]) -> 16.43916667 | R17: =_xlfn.STDEV.P(VENTAS[[#This Row],[may-15]:[abr-16]]) -> 20.60255019 | S17: 1.253260011
A18: Cereal | B18: 27 | C18: 48 | D18: 78 | E18: 202 | F18: 188 | G18: 138 | H18: 136 | I18: 130 | J18: 86 | K18: 117 | L18: 124 | M18: 144 | N18: 121 | Q18: =AVERAGE(VENTAS[[#This Row],[may-15]:[abr-16]]) -> 126 | R18: =_xlfn.STDEV.P(VENTAS[[#This Row],[may-15]:[abr-16]]) -> 41.13190165 | S18: 0.3264436639
A19: Cerv (A+R) | B19: 109 | C19: 231 | D19: 305 | E19: 280 | F19: 347 | G19: 470 | H19: 609 | I19: 438 | J19: 696 | K19: 400 | L19: 447 | M19: 380 | N19: 398 | Q19: =AVERAGE(VENTAS[[#This Row],[may-15]:[abr-16]]) -> 416.75 | R19: =_xlfn.STDEV.P(VENTAS[[#This Row],[may-15]:[abr-16]]) -> 126.386395 | S19: 0.3032666946
A20: Chocol | B20: 265 | C20: 719 | D20: 890 | E20: 1272 | F20: 1337 | G20: 1156 | H20: 1364 | I20: 1188 | J20: 1250 | K20: 618 | L20: 544 | M20: 539 | N20: 582 | Q20: =AVERAGE(VENTAS[[#This Row],[may-15]:[abr-16]]) -> 954.9166667 | R20: =_xlfn.STDEV.P(VENTAS[[#This Row],[may-15]:[abr-16]]) -> 322.7492469 | S20: 0.3379868194
A21: Comple | B21: 156 | C21: 441 | D21: 510 | E21: 578 | F21: 610 | G21: 550 | H21: 685 | I21: 664 | J21: 490 | K21: 551 | L21: 575 | M21: 614 | N21: 658 | Q21: =AVERAGE(VENTAS[[#This Row],[may-15]:[abr-16]]) -> 577.1666667 | R21: =_xlfn.STDEV.P(VENTAS[[#This Row],[may-15]:[abr-16]]) -> 70.83764693 | S21: 0.1227334339
A22: Conserv | B22: 10 | C22: 28 | D22: 26 | E22: 36 | F22: 56 | G22: 20 | H22: 14 | I22: 21 | J22: 26 | K22: 17 | L22: 12 | M22: 30 | N22: 39 | Q22: =AVERAGE(VENTAS[[#This Row],[may-15]:[abr-16]]) -> 27.08333333 | R22: =_xlfn.STDEV.P(VENTAS[[#This Row],[may-15]:[abr-16]]) -> 11.750591 | S22: 0.4338679754
A23: D'GUS | D23: 12.45 | E23: 0 | F23: 0 | G23: 0 | H23: 0 | I23: 0 | J23: 0 | K23: 0 | L23: 0 | M23: 0 | N23: 0 | Q23: =AVERAGE(VENTAS[[#This Row],[may-15]:[abr-16]]) -> 1.131818182 | R23: =_xlfn.STDEV.P(VENTAS[[#This Row],[may-15]:[abr-16]]) -> 3.579123352 | S23: 3.16227766 | T23: X
A24: Dulce (R+T) | B24: 88 | C24: 175 | D24: 34 | E24: 328 | F24: 401 | G24: 377 | H24: 418 | I24: 266 | J24: 249 | K24: 121 | L24: 111 | M24: 74 | N24: 40 | Q24: =AVERAGE(VENTAS[[#This Row],[may-15]:[abr-16]]) -> 216.1666667 | R24: =_xlfn.STDEV.P(VENTAS[[#This Row],[may-15]:[abr-16]]) -> 136.3444372 | S24: 0.6307375661
A25: Embuti | B25: 154.24 | C25: 255.12 | D25: 284.62 | E25: 218.19 | F25: 157.83 | G25: 172.06 | H25: 222.15 | I25: 167.21 | J25: 166.47 | K25: 138.41 | L25: 117.47 | M25: 129.54 | N25: 202.02 | Q25: =AVERAGE(VENTAS[[#This Row],[may-15]:[abr-16]]) -> 185.9241667 | R25: =_xlfn.STDEV.P(VENTAS[[#This Row],[may-15]:[abr-16]]) -> 49.1378392 | S25: 0.2642896837
A26: Encurt | B26: 11 | C26: 23 | D26: 14 | E26: 19 | F26: 13 | G26: 8 | H26: 4 | I26: 4 | J26: 8 | K26: 2 | L26: 4 | M26: 2 | N26: 3 | Q26: =AVERAGE(VENTAS[[#This Row],[may-15]:[abr-16]]) -> 8.666666667 | R26: =_xlfn.STDEV.P(VENTAS[[#This Row],[may-15]:[abr-16]]) -> 6.749485577 | S26: 0.7787867974
A27: ENSALA | E27: 2 | F27: 2 | G27: 4 | H27: ? | I27: 1 | J27: 2 | K27: 3 | L27: 6 | M27: 5 | N27: 11 | Q27: =AVERAGE(VENTAS[[#This Row],[may-15]:[abr-16]]) -> 4 | R27: =_xlfn.STDEV.P(VENTAS[[#This Row],[may-15]:[abr-16]]) -> 2.905932629 | S27: 0.7264831573
A28: ESCENC | C28: 5 | D28: 4 | E28: 5 | F28: 6 | G28: 8 | H28: 7 | I28: 3 | J28: NM | K28: NM | L28: NM | M28: NM | N28: NM | Q28: =AVERAGE(VENTAS[[#This Row],[may-15]:[abr-16]]) -> 5.428571429 | R28: =_xlfn.STDEV.P(VENTAS[[#This Row],[may-15]:[abr-16]]) -> 1.590789818 | S28: 0.2930402296 | T28: X
A29: Especi | B29: 32 | C29: 78 | D29: 87 | E29: 69 | F29: 99 | G29: 62 | H29: 71 | I29: 56 | J29: 75 | K29: 50 | L29: 44 | M29: 38 | N29: 51 | Q29: =AVERAGE(VENTAS[[#This Row],[may-15]:[abr-16]]) -> 65 | R29: =_xlfn.STDEV.P(VENTAS[[#This Row],[may-15]:[abr-16]]) -> 17.42125139 | S29: 0.2680192522
A30: FIDEOS | C30: 35 | D30: 41 | E30: 29 | F30: 50 | G30: 49 | H30: 58 | I30: 40 | J30: 41 | K30: 27 | L30: 33 | M30: 34 | N30: 39 | Q30: =AVERAGE(VENTAS[[#This Row],[may-15]:[abr-16]]) -> 39.66666667 | R30: =_xlfn.STDEV.P(VENTAS[[#This Row],[may-15]:[abr-16]]) -> 8.692269874 | S30: 0.219132854
A31: Frutas | B31: 560.1 | C31: 599.89 | D31: 1019.61 | E31: 1091.55 | F31: 932.94 | G31: 1025.27 | H31: 1071.54 | I31: 1102.47 | J31: 766.2 | K31: 706.8 | L31: 631.01 | M31: 640.1 | N31: 707.63 | Q31: =AVERAGE(VENTAS[[#This Row],[may-15]:[abr-16]]) -> 857.9175 | R31: =_xlfn.STDEV.P(VENTAS[[#This Row],[may-15]:[abr-16]]) -> 191.300144 | S31: 0.2229819813
A32: FUXION | F32: 4 | G32: 26 | H32: 5 | I32: 3 | J32: 1 | K32: 2 | L32: 5 | M32: 8 | N32: 2 | Q32: =AVERAGE(VENTAS[[#This Row],[may-15]:[abr-16]]) -> 6.222222222 | R32: =_xlfn.STDEV.P(VENTAS[[#This Row],[may-15]:[abr-16]]) -> 7.269078771 | S32: 1.168244802
A33: GALLE | B33: 151 | C33: 579 | D33: 856 | E33: 823 | F33: 1207 | G33: 1208 | H33: 1203 | I33: 1076 | J33: 867 | K33: 609 | L33: 663 | M33: 707 | N33: 915 | Q33: =AVERAGE(VENTAS[[#This Row],[may-15]:[abr-16]]) -> 892.75 | R33: =_xlfn.STDEV.P(VENTAS[[#This Row],[may-15]:[abr-16]]) -> 223.9021829 | S33: 0.2508005409
A34: Gaseos | B34: 333 | C34: 954 | D34: 778 | E34: 691 | F34: 516 | G34: 570 | H34: 632 | I34: 506 | J34: 567 | K34: 516 | L34: 579 | M34: 575 | N34: 624 | Q34: =AVERAGE(VENTAS[[#This Row],[may-15]:[abr-16]]) -> 625.6666667 | R34: =_xlfn.STDEV.P(VENTAS[[#This Row],[may-15]:[abr-16]]) -> 124.156711 | S34: 0.1984390693
A35: GELATI | C35: 3 | D35: 5 | E35: 3 | F35: 11 | G35: 16 | H35: 8 | I35: 2 | J35: 0 | K35: 0 | L35: 16 | M35: 11 | N35: 72 | Q35: =AVERAGE(VENTAS[[#This Row],[may-15]:[abr-16]]) -> 12.25 | R35: =_xlfn.STDEV.P(VENTAS[[#This Row],[may-15]:[abr-16]]) -> 18.81544135 | S35: 1.535954396
A36: GIANIN | D36: 213 | E36: 274 | F36: 205 | G36: 83 | H36: 126 | I36: 94 | J36: 93 | K36: 23 | L36: 201 | M36: 198 | N36: 155 | Q36: =AVERAGE(VENTAS[[#This Row],[may-15]:[abr-16]]) -> 151.3636364 | R36: =_xlfn.STDEV.P(VENTAS[[#This Row],[may-15]:[abr-16]]) -> 70.61968915 | S36: 0.4665565049
A37: Golosi | B37: 216 | C37: 287 | D37: 105 | E37: 124 | F37: 139 | G37: 233 | H37: 228 | I37: 91 | J37: 50 | K37: 52 | L37: 37 | M37: 30 | N37: 43 | Q37: =AVERAGE(VENTAS[[#This Row],[may-15]:[abr-16]]) -> 118.25 | R37: =_xlfn.STDEV.P(VENTAS[[#This Row],[may-15]:[abr-16]]) -> 83.75074627 | S37: 0.708251554
A38: Gran A+R | B38: 38.44 | C38: 45.71 | D38: 46 | E38: 60.64 | F38: 67 | G38: 41 | H38: 35 | I38: 44 | J38: 28 | K38: 22 | L38: 14 | M38: 21 | N38: 19 | Q38: =AVERAGE(VENTAS[[#This Row],[may-15]:[abr-16]]) -> 36.94583333 | R38: =_xlfn.STDEV.P(VENTAS[[#This Row],[may-15]:[abr-16]]) -> 16.07191778 | S38: 0.4350129994
A39: Granol | B39: 3 | C39: 29 | D39: 46 | E39: 54 | F39: 60 | G39: 83 | H39: 68 | I39: 72 | J39: 66 | K39: 52 | L39: 63 | M39: 84 | N39: 162 | Q39: =AVERAGE(VENTAS[[#This Row],[may-15]:[abr-16]]) -> 69.91666667 | R39: =_xlfn.STDEV.P(VENTAS[[#This Row],[may-15]:[abr-16]]) -> 31.40981358 | S39: 0.4492464397
A40: Harina | D40: 5 | E40: 10 | F40: 26 | G40: 17 | H40: 12 | I40: 14 | J40: 9 | K40: 18 | L40: 16 | M40: 7 | N40: 17 | Q40: =AVERAGE(VENTAS[[#This Row],[may-15]:[abr-16]]) -> 13.72727273 | R40: =_xlfn.STDEV.P(VENTAS[[#This Row],[may-15]:[abr-16]]) -> 5.69035722 | S40: 0.4145293339
A41: Helado | B41: 78 | C41: 493 | D41: 596 | E41: 632 | F41: 723 | G41: 664 | H41: 1038 | I41: 933 | J41: 1028 | K41: 2186 | L41: 2013 | M41: 1989 | N41: 1620 | Q41: =AVERAGE(VENTAS[[#This Row],[may-15]:[abr-16]]) -> 1159.583333 | R41: =_xlfn.STDEV.P(VENTAS[[#This Row],[may-15]:[abr-16]]) -> 594.5386809 | S41: 0.5127175114
A42: HIELO | F42: 7 | G42: 9 | H42: 7 | I42: 14 | J42: NM | K42: NM | L42: NM | M42: NM | N42: NM | Q42: =AVERAGE(VENTAS[[#This Row],[may-15]:[abr-16]]) -> 9.25 | R42: =_xlfn.STDEV.P(VENTAS[[#This Row],[may-15]:[abr-16]]) -> 2.861380786 | S42: 0.3093384633 | T42: X
A43: Hongos | C43: 1 | D43: 0 | E43: 0 | F43: 0 | G43: 0 | H43: 2 | I43: 4 | J43: 1 | K43: 1 | L43: 0 | M43: 1 | N43: 0 | Q43: =AVERAGE(VENTAS[[#This Row],[may-15]:[abr-16]]) -> 0.8333333333 | R43: =_xlfn.STDEV.P(VENTAS[[#This Row],[may-15]:[abr-16]]) -> 1.1426091 | S43: 1.37113092
A44: Huevo | B44: 12.12 | C44: 36.84 | D44: 59.22 | E44: 84.97 | F44: 93 | G44: 103 | H44: 81 | I44: 76 | J44: 49 | K44: 51 | L44: 60 | M44: 70 | N44: 66 | Q44: =AVERAGE(VENTAS[[#This Row],[may-15]:[abr-16]]) -> 69.16916667 | R44: =_xlfn.STDEV.P(VENTAS[[#This Row],[may-15]:[abr-16]]) -> 18.53962309 | S44: 0.2680330555
A45: INFUSI | B45: 19 | C45: 46 | D45: 35 | E45: 34 | F45: 44 | G45: 23 | H45: 26 | I45: 63 | J45: 121 | K45: 48 | L45: 84 | M45: 93 | N45: 108 | Q45: =AVERAGE(VENTAS[[#This Row],[may-15]:[abr-16]]) -> 60.41666667 | R45: =_xlfn.STDEV.P(VENTAS[[#This Row],[may-15]:[abr-16]]) -> 31.7790768 | S45: 0.5259985125
A46: Jalea | C46: 1 | D46: 0 | E46: 1 | F46: 1 | G46: 1 | H46: 7 | I46: 3 | J46: 0 | K46: 2 | L46: 5 | M46: 5 | N46: 7 | Q46: =AVERAGE(VENTAS[[#This Row],[may-15]:[abr-16]]) -> 2.75 | R46: =_xlfn.STDEV.P(VENTAS[[#This Row],[may-15]:[abr-16]]) -> 2.487468593 | S46: 0.9045340337
A47: KINGKO | C47: 76 | D47: 94 | E47: 261 | F47: 357 | G47: 276 | H47: 385 | I47: 237 | J47: 239 | K47: 225 | L47: 121 | M47: 125 | N47: 250 | Q47: =AVERAGE(VENTAS[[#This Row],[may-15]:[abr-16]]) -> 220.5 | R47: =_xlfn.STDEV.P(VENTAS[[#This Row],[may-15]:[abr-16]]) -> 94.78967947 | S47: 0.4298851676
A48: LA COC | G48: 572.9 | H48: NM | I48: NM | J48: NM | K48: NM | L48: NM | M48: NM | N48: NM | Q48: =AVERAGE(VENTAS[[#This Row],[may-15]:[abr-16]]) -> 572.9 | R48: =_xlfn.STDEV.P(VENTAS[[#This Row],[may-15]:[abr-16]]) -> 0 | S48: 0 | T48: X
A49: Leche | B49: 29 | C49: 107 | D49: 95 | E49: 166 | F49: 149 | G49: 136 | H49: 173 | I49: 108 | J49: 46 | K49: 35 | L49: 54 | M49: 45 | N49: 82 | Q49: =AVERAGE(VENTAS[[#This Row],[may-15]:[abr-16]]) -> 99.66666667 | R49: =_xlfn.STDEV.P(VENTAS[[#This Row],[may-15]:[abr-16]]) -> 46.65892793 | S49: 0.4681497786
A50: Leche C | B50: 3 | C50: 0 | D50: 3 | E50: 10 | F50: 11 | G50: 3 | H50: 7 | I50: 1 | J50: 2 | K50: 1 | L50: 1 | M50: 0 | N50: 0 | Q50: =AVERAGE(VENTAS[[#This Row],[may-15]:[abr-16]]) -> 3.25 | R50: =_xlfn.STDEV.P(VENTAS[[#This Row],[may-15]:[abr-16]]) -> 3.744440323 | S50: 1.152135484
A51: LICOR | B51: 48 | C51: 116 | D51: 161 | E51: 155 | F51: 136 | G51: 149 | H51: 225 | I51: 147 | J51: 286 | K51: 109 | L51: 121 | M51: 90 | N51: 123 | Q51: =AVERAGE(VENTAS[[#This Row],[may-15]:[abr-16]]) -> 151.5 | R51: =_xlfn.STDEV.P(VENTAS[[#This Row],[may-15]:[abr-16]]) -> 52.00400626 | S51: 0.3432607674
A52: Manjar | B52: 33 | C52: 36 | D52: 75 | E52: 143 | F52: 92 | G52: 47 | H52: 61 | I52: 47 | J52: 42 | K52: 24 | L52: 25 | M52: 25 | N52: 53 | Q52: =AVERAGE(VENTAS[[#This Row],[may-15]:[abr-16]]) -> 55.83333333 | R52: =_xlfn.STDEV.P(VENTAS[[#This Row],[may-15]:[abr-16]]) -> 32.868002 | S52: 0.5886806329
A53: Manteq | B53: 8 | C53: 29 | D53: 56 | E53: 80 | F53: 80 | G53: 73 | H53: 55 | I53: 41 | J53: 42 | K53: 32 | L53: 28 | M53: 47 | N53: 62 | Q53: =AVERAGE(VENTAS[[#This Row],[may-15]:[abr-16]]) -> 52.08333333 | R53: =_xlfn.STDEV.P(VENTAS[[#This Row],[may-15]:[abr-16]]) -> 17.99286124 | S53: 0.3454629358
A54: Melaza | B54: 2 | C54: 0 | D54: 0 | E54: 0 | F54: 3 | G54: 3 | H54: 1 | I54: 2 | J54: 3 | K54: 2 | L54: 0 | M54: 1 | N54: 2 | Q54: =AVERAGE(VENTAS[[#This Row],[may-15]:[abr-16]]) -> 1.416666667 | R54: =_xlfn.STDEV.P(VENTAS[[#This Row],[may-15]:[abr-16]]) -> 1.187317237 | S54: 0.8381062852
A55: Menest | B55: 7.35 | C55: 38.76 | D55: 35.76 | E55: 32.02 | F55: 29.86 | G55: 50.81 | H55: 36.55 | I55: 46.61 | J55: 20.46 | K55: 15 | L55: 26 | M55: 18 | N55: 10 | Q55: =AVERAGE(VENTAS[[#This Row],[may-15]:[abr-16]]) -> 29.98583333 | R55: =_xlfn.STDEV.P(VENTAS[[#This Row],[may-15]:[abr-16]]) -> 12.04808108 | S55: 0.4017924379
A56: Mermel | B56: 23 | C56: 28 | D56: 45 | E56: 63 | F56: 261 | G56: 134 | H56: 125 | I56: 110 | J56: 130 | K56: 69 | L56: 121 | M56: 69 | N56: 92 | Q56: =AVERAGE(VENTAS[[#This Row],[may-15]:[abr-16]]) -> 103.9166667 | R56: =_xlfn.STDEV.P(VENTAS[[#This Row],[may-15]:[abr-16]]) -> 58.11118414 | S56: 0.5592094705
A57: Miel | B57: 21 | C57: 59 | D57: 77 | E57: 84 | F57: 84 | G57: 95 | H57: 81 | I57: 103 | J57: 89 | K57: 78 | L57: 77 | M57: 76 | N57: 89 | Q57: =AVERAGE(VENTAS[[#This Row],[may-15]:[abr-16]]) -> 82.66666667 | R57: =_xlfn.STDEV.P(VENTAS[[#This Row],[may-15]:[abr-16]]) -> 10.57775444 | S57: 0.1279567069
A58: Natill | B58: 3 | C58: 3 | D58: 12 | E58: 16 | F58: 9 | G58: 6 | H58: 6 | I58: 9 | J58: 2 | K58: 9 | L58: NM | M58: NM | N58: NM | Q58: =AVERAGE(VENTAS[[#This Row],[may-15]:[abr-16]]) -> 8 | R58: =_xlfn.STDEV.P(VENTAS[[#This Row],[may-15]:[abr-16]]) -> 4.109609335 | S58: 0.5137011669 | T58: X
A59: PADDIN | E59: 9 | F59: 11 | G59: 8 | H59: 2 | I59: 0 | J59: 3 | K59: 2 | L59: 1 | M59: 0 | N59: 0 | Q59: =AVERAGE(VENTAS[[#This Row],[may-15]:[abr-16]]) -> 3.6 | R59: =_xlfn.STDEV.P(VENTAS[[#This Row],[may-15]:[abr-16]]) -> 3.929376541 | S59: 1.091493484
A60: Pan | B60: 986 | C60: 1780 | D60: 2363 | E60: 2305 | F60: 2228 | G60: 1694 | H60: 1737 | I60: 1563 | J60: 1095 | K60: 1561 | L60: 1093 | M60: 762 | N60: 1012 | Q60: =AVERAGE(VENTAS[[#This Row],[may-15]:[abr-16]]) -> 1599.416667 | R60: =_xlfn.STDEV.P(VENTAS[[#This Row],[may-15]:[abr-16]]) -> 507.9805538 | S60: 0.3176036391
A61: PANELA | D61: 11 | E61: 18 | F61: 36 | G61: 60 | H61: 35 | I61: 45 | J61: 28 | K61: 12 | L61: 31 | M61: 26 | N61: 37 | Q61: =AVERAGE(VENTAS[[#This Row],[may-15]:[abr-16]]) -> 30.81818182 | R61: =_xlfn.STDEV.P(VENTAS[[#This Row],[may-15]:[abr-16]]) -> 13.74321771 | S61: 0.4459451175
A62: Pap Hi | B62: 22 | C62: 44 | D62: 74 | E62: 71 | F62: 48 | G62: 54 | H62: 39 | I62: 5 | J62: 20 | K62: 11 | L62: 3 | M62: 2 | N62: 0 | Q62: =AVERAGE(VENTAS[[#This Row],[may-15]:[abr-16]]) -> 30.91666667 | R62: =_xlfn.STDEV.P(VENTAS[[#This Row],[may-15]:[abr-16]]) -> 26.27247715 | S62: 0.8497836275
A63: PAPELR | B63: 12 | C63: 29 | D63: 4 | E63: 2 | F63: 17 | G63: 1 | H63: 14 | I63: 11 | J63: 3 | K63: 0 | L63: 0 | M63: 0 | N63: 5 | Q63: =AVERAGE(VENTAS[[#This Row],[may-15]:[abr-16]]) -> 7.166666667 | R63: =_xlfn.STDEV.P(VENTAS[[#This Row],[may-15]:[abr-16]]) -> 8.591015979 | S63: 1.198746416
A64: Piqueo | B64: 94 | C64: 108 | D64: 144 | E64: 222 | F64: 139 | G64: 98 | H64: 57 | I64: 48 | J64: 5 | K64: 1 | L64: 0 | M64: 0 | N64: 0 | Q64: =AVERAGE(VENTAS[[#This Row],[may-15]:[abr-16]]) -> 68.5 | R64: =_xlfn.STDEV.P(VENTAS[[#This Row],[may-15]:[abr-16]]) -> 70.64052189 | S64: 1.031248495
A65: Pollich | B65: 2 | C65: NM | D65: NM | E65: NM | F65: NM | G65: NM | H65: NM | I65: NM | J65: NM | K65: NM | L65: NM | M65: NM | N65: NM | Q65: =AVERAGE(VENTAS[[#This Row],[may-15]:[abr-16]]) ->  | R65: =_xlfn.STDEV.P(VENTAS[[#This Row],[may-15]:[abr-16]]) -> 
A66: PULPAS | L66: 25 | M66: 7 | N66: 3 | Q66: =AVERAGE(VENTAS[[#This Row],[may-15]:[abr-16]]) -> 11.66666667 | R66: =_xlfn.STDEV.P(VENTAS[[#This Row],[may-15]:[abr-16]]) -> 9.56846673 | S66: 0.8201542911
A67: Queso | B67: 48.82 | C67: 157.28 | D67: 257.87 | E67: 272.46 | F67: 269.64 | G67: 277.89 | H67: 253.26 | I67: 243.78 | J67: 163.53 | K67: 95.12 | L67: 108.47 | M67: 125.93 | N67: 126.8 | Q67: =AVERAGE(VENTAS[[#This Row],[may-15]:[abr-16]]) -> 196.0025 | R67: =_xlfn.STDEV.P(VENTAS[[#This Row],[may-15]:[abr-16]]) -> 69.19462023 | S67: =R67/Q67 -> 0.3530292738
A68: QUINLO | C68: 26 | D68: 22 | E68: 25 | F68: 27 | G68: 45 | H68: 37 | I68: 31 | J68: 21 | K68: 23 | L68: 18 | M68: 27 | N68: 30 | Q68: =AVERAGE(VENTAS[[#This Row],[may-15]:[abr-16]]) -> 27.66666667 | R68: =_xlfn.STDEV.P(VENTAS[[#This Row],[may-15]:[abr-16]]) -> 7.110243003 | S68: 0.256996735
A69: Quinua | B69: 1 | C69: 0 | D69: 0 | E69: 2 | F69: 12 | G69: 20 | H69: 33 | I69: 16 | J69: 13 | K69: 6 | L69: 10 | M69: 7 | N69: 5 | Q69: =AVERAGE(VENTAS[[#This Row],[may-15]:[abr-16]]) -> 10.33333333 | R69: =_xlfn.STDEV.P(VENTAS[[#This Row],[may-15]:[abr-16]]) -> 9.08600878 | S69: 0.8792911723
A70: Sal | B70: 57 | C70: 111 | D70: 161 | E70: 179 | F70: 195 | G70: 162 | H70: 222 | I70: 177 | J70: 210 | K70: 144 | L70: 119 | M70: 141 | N70: 127 | Q70: =AVERAGE(VENTAS[[#This Row],[may-15]:[abr-16]]) -> 162.3333333 | R70: =_xlfn.STDEV.P(VENTAS[[#This Row],[may-15]:[abr-16]]) -> 34.09138047 | S70: 0.2100085039
A71: Salsa (R+P + SALSAS) | B71: 34 | C71: 65 | D71: 45 | E71: 53 | F71: 74 | G71: 83 | H71: 110 | I71: 54 | J71: 96 | K71: 58 | L71: 37 | M71: 49 | N71: 74 | Q71: =AVERAGE(VENTAS[[#This Row],[may-15]:[abr-16]]) -> 66.5 | R71: =_xlfn.STDEV.P(VENTAS[[#This Row],[may-15]:[abr-16]]) -> 20.8146583 | S71: 0.3130023804
A72: Salud | B72: 19 | C72: 191 | D72: 386 | E72: 389 | F72: 430 | G72: 455 | H72: 556 | I72: 537 | J72: 457 | K72: 356 | L72: 360 | M72: 313 | N72: 340 | Q72: =AVERAGE(VENTAS[[#This Row],[may-15]:[abr-16]]) -> 397.5 | R72: =_xlfn.STDEV.P(VENTAS[[#This Row],[may-15]:[abr-16]]) -> 95.26585607 | S72: 0.239662531
A73: SANDWI | D73: 11.21 | E73: 47.49 | F73: 52.47 | G73: 24 | H73: 84 | I73: 18 | J73: 12 | K73: 0 | L73: 8 | M73: 12 | N73: 52 | Q73: =AVERAGE(VENTAS[[#This Row],[may-15]:[abr-16]]) -> 29.19727273 | R73: =_xlfn.STDEV.P(VENTAS[[#This Row],[may-15]:[abr-16]]) -> 24.80611548 | S73: 0.8496038556
A74: Snack | B74: 257 | C74: 424 | D74: 371 | E74: 412 | F74: 349 | G74: 356 | H74: 447 | I74: 419 | J74: 430 | K74: 315 | L74: 274 | M74: 257 | N74: 258 | Q74: =AVERAGE(VENTAS[[#This Row],[may-15]:[abr-16]]) -> 359.3333333 | R74: =_xlfn.STDEV.P(VENTAS[[#This Row],[may-15]:[abr-16]]) -> 66.73121875 | S74: 0.185708401
A75: SOYA | B75: 5 | C75: 24 | D75: 41 | E75: 35 | F75: 37 | G75: 33 | H75: 26 | I75: 32 | J75: 19 | K75: 18 | L75: 17 | M75: 11 | N75: 27 | Q75: =AVERAGE(VENTAS[[#This Row],[may-15]:[abr-16]]) -> 26.66666667 | R75: =_xlfn.STDEV.P(VENTAS[[#This Row],[may-15]:[abr-16]]) -> 8.806563209 | S75: 0.3302461203
A76: Stevia | B76: 9 | C76: 22 | D76: 16 | E76: 20 | F76: 23 | G76: 23 | H76: 47 | I76: 50 | J76: 30 | K76: 27 | L76: 50 | M76: 17 | N76: 25 | Q76: =AVERAGE(VENTAS[[#This Row],[may-15]:[abr-16]]) -> 29.16666667 | R76: =_xlfn.STDEV.P(VENTAS[[#This Row],[may-15]:[abr-16]]) -> 12.04736025 | S76: 0.4130523513
A77: TAMALE | F77: 152 | G77: 154 | H77: 99 | I77: 61 | J77: 133 | K77: 120 | L77: 115 | M77: 151 | N77: 72 | Q77: =AVERAGE(VENTAS[[#This Row],[may-15]:[abr-16]]) -> 117.4444444 | R77: =_xlfn.STDEV.P(VENTAS[[#This Row],[may-15]:[abr-16]]) -> 32.49311418 | S77: 0.2766679542
A78: Tapena | B78: 18 | C78: 27 | D78: 28 | E78: 41 | F78: 51 | G78: 31 | H78: 37 | I78: 28 | J78: 42 | K78: 24 | L78: 34 | M78: 27 | N78: 27 | Q78: =AVERAGE(VENTAS[[#This Row],[may-15]:[abr-16]]) -> 33.08333333 | R78: =_xlfn.STDEV.P(VENTAS[[#This Row],[may-15]:[abr-16]]) -> 7.793783135 | S78: 0.2355803467
A79: Te | B79: 22 | C79: 99 | D79: 110 | E79: 148 | F79: 172 | G79: 142 | H79: 209 | I79: 131 | J79: 122 | K79: 73 | L79: 51 | M79: 49 | N79: 70 | Q79: =AVERAGE(VENTAS[[#This Row],[may-15]:[abr-16]]) -> 114.6666667 | R79: =_xlfn.STDEV.P(VENTAS[[#This Row],[may-15]:[abr-16]]) -> 47.19522104 | S79: 0.41158623
A80: Thika | B80: 101 | C80: 85 | D80: 53 | E80: 53 | F80: 37 | G80: 23 | H80: 8 | I80: 15 | J80: 36 | K80: 25 | L80: 19 | M80: 38 | N80: 35 | Q80: =AVERAGE(VENTAS[[#This Row],[may-15]:[abr-16]]) -> 35.58333333 | R80: =_xlfn.STDEV.P(VENTAS[[#This Row],[may-15]:[abr-16]]) -> 19.97272446 | S80: 0.5612943641
A81: TRUCHA | H81: 6.69 | I81: 0 | J81: 0 | K81: 0 | L81: 0 | M81: 6.05 | N81: 1.89 | Q81: =AVERAGE(VENTAS[[#This Row],[may-15]:[abr-16]]) -> 2.09 | R81: =_xlfn.STDEV.P(VENTAS[[#This Row],[may-15]:[abr-16]]) -> 2.786549325 | S81: 1.333277189
A82: TURRON | E82: 3 | F82: 27 | G82: 32 | H82: 38 | I82: 16 | J82: 9 | K82: 2 | L82: 1 | M82: 0 | N82: 0 | Q82: =AVERAGE(VENTAS[[#This Row],[may-15]:[abr-16]]) -> 12.8 | R82: =_xlfn.STDEV.P(VENTAS[[#This Row],[may-15]:[abr-16]]) -> 13.81882774 | S82: 1.079595917
A83: Verdur | B83: 94.43 | C83: 152.89 | D83: 25.67 | E83: 177.38 | F83: 142 | G83: 76.97 | H83: 56.16 | I83: 15 | J83: 3 | K83: 0 | L83: 0 | M83: 0 | N83: 17 | Q83: =AVERAGE(VENTAS[[#This Row],[may-15]:[abr-16]]) -> 55.50583333 | R83: =_xlfn.STDEV.P(VENTAS[[#This Row],[may-15]:[abr-16]]) -> 63.43797594 | S83: 1.142906468
A84: Vinagr | B84: 8 | C84: 6 | D84: 8 | E84: 16 | F84: 8 | G84: 9 | H84: 17 | I84: 18 | J84: 22 | K84: 11 | L84: 20 | M84: 19 | N84: 18 | Q84: =AVERAGE(VENTAS[[#This Row],[may-15]:[abr-16]]) -> 14.33333333 | R84: =_xlfn.STDEV.P(VENTAS[[#This Row],[may-15]:[abr-16]]) -> 5.31245915 | S84: 0.3706366849
A85: YOGUR | B85: 86 | C85: 213 | D85: 294 | E85: 243 | F85: 239 | G85: 272 | H85: 328 | I85: 331 | J85: 227 | K85: 189 | L85: 245 | M85: 295 | N85: 353 | Q85: =AVERAGE(VENTAS[[#This Row],[may-15]:[abr-16]]) -> 269.0833333 | R85: =_xlfn.STDEV.P(VENTAS[[#This Row],[may-15]:[abr-16]]) -> 49.28058836 | S85: 0.1831424776
A86: TOTAL PRODUCTOS VENDIDOS | B86: =SUM(B2:B85) -> 5148.56 | C86: 10878.21 | D86: 12902.28 | E86: 14485.12 | F86: 15166.98 | G86: 14662.74 | H86: 15831.05 | I86: 13524.07 | J86: 12641.14 | K86: 11563.33 | L86: 11162.95 | M86: 10955.62 | N86: 11859.34 | Q86: =AVERAGE(VENTAS[[#This Row],[may-15]:[abr-16]]) -> 12969.4025 | R86: =_xlfn.STDEV.P(VENTAS[[#This Row],[may-15]:[abr-16]]) -> 1670.928827
A88: TOTAL PRODUCTOS VENDIDOS | B88: 5148.56 | C88: 10878.21 | D88: 12902.28 | E88: 14485.12 | F88: 15166.98 | G88: 14662.74 | H88: 15831.05 | I88: 13524.07 | J88: 12641.14 | K88: 11563.33 | L88: 11162.95 | M88: 10955.62 | N88: 11859.34 | T88: FACIL
T89: DISPERSION
T90: COMPLICADO

Sheet GRAF

Sheet VERANO

Sheet Invierno

Sheet Feuil2
A1: NOMBRE DE LOCAL | F1: Pagi | G1: na :1
A2: Usuario :ALVARO | F2: Hora | G2: :12:29:42
A4: 42095
A5: Fechai : 01/04/2015
A6: Fechaf : 30/04/2015
A7: ------------------------- | B7: --------- | C7: ----------- | D7: ------------- | E7: ----------- | F7: ---------- | G7: ------------ | H7: --------- | I7: -------------------------------------------------------
A8: Tip Descripcio NroDo M | B8: SubTotal | C8: Impuesto | D8: Exonerad | E8: Isc | F8: Ivap | G8: Total | H8: VtaAcum | I8: Personas
A9: ------------------------- | B9: --------- | C9: ----------- | D9: ------------- | E9: ----------- | F9: ---------- | G9: ------------ | H9: --------- | I9: -------------------------------------------------------
A10: 42111
A11: 1 TICK BOLET 65 S | B11: 1396.46 | C11: 251.37 | G11: 1647.83 | J11: =A10 -> 42111
A12: 65 | B12: 1396.45 | C12: 251.37 | D12: 0.00 | E12: 0.00 | F12: 0.00 | G12: 1647.83 | H12: 1647.83 | I12: 0.00 | K12: =G12/A12 -> 
A13: 42112
A14: 2 TICK FACTU 1 S | B14: 75.42 | C14: 13.58 | G14: 89.00
A15: 1 TICK BOLET 102 S | B15: 1213.23 | C15: 218.38 | G15: 1431.61
A16: 103.00 | B16: 1288.67 | C16: 231.96 | D16: 0.00 | E16: 0.00 | F16: 0.00 | G16: 1520.61 | H16: 3168.44 | I16: 0.00
A17: 42113
A18: 1 TICK BOLET 85 S | B18: 1575.67 | C18: 283.63 | G18: 1859.30
A19: 85.00 | B19: 1575.68 | C19: 283.63 | D19: 0.00 | E19: 0.00 | F19: 0.00 | G19: 1859.30 | H19: 5027.74 | I19: 0.00
A20: 42114
A21: 1 TICK BOLET 132 S | B21: 1053.88 | C21: 189.69 | D21: 244.95 | G21: 1488.52
A22: 132.00 | B22: 1298.83 | C22: 189.69 | D22: 244.95 | E22: 0.00 | F22: 0.00 | G22: 1488.52 | H22: 6516.26 | I22: 0.00
A23: 42115
A24: 1 TICK BOLET 133 S | B24: 1266.66 | C24: 227.97 | D24: 169.75 | G24: 1664.38
A25: 2 TICK FACTU 1 S | B25: 27.06 | C25: 4.87 | G25: 31.93
A26: 134.00 | B26: 1463.51 | C26: 232.84 | D26: 169.75 | E26: 0.00 | F26: 0.00 | G26: 1696.31 | H26: 8212.57 | I26: 0.00
A27: 42116
A28: 1 TICK BOLET 141 S | B28: 1382.06 | C28: 248.81 | D28: 111.67 | G28: 1742.54
A29: 2 TICK FACTU 2 S | B29: 40.76 | C29: 7.34 | D29: 11.11 | G29: 59.21
A30: 143.00 | B30: 1545.62 | C30: 256.15 | D30: 122.78 | E30: 0.00 | F30: 0.00 | G30: 1801.75 | H30: 10014.32 | I30: 0.00
A31: 42117
A32: 1 TICK BOLET 118 S | B32: 1354.54 | C32: 243.79 | D32: 119.32 | G32: 1717.65
A33: 118.00 | B33: 1473.84 | C33: 243.79 | D33: 119.32 | E33: 0.00 | F33: 0.00 | G33: 1717.65 | H33: 11731.97 | I33: 0.00
A34: 42118
A35: 1 TICK BOLET 127 S | B35: 2064.82 | C35: 371.67 | D35: 132.53 | G35: 2569.02
A36: 127.00 | B36: 2197.33 | C36: 371.67 | D36: 132.53 | E36: 0.00 | F36: 0.00 | G36: 2569.02 | H36: 14300.99 | I36: 0.00
A37: 42119
A38: 2 TICK FACTU 1 S | B38: 11.61 | C38: 2.09 | G38: 13.70
A39: 1 TICK BOLET 127 S | B39: 1574.60 | C39: 283.46 | D39: 133.16 | G39: 1991.22
A40: 128.00 | B40: 1719.38 | C40: 285.55 | D40: 133.16 | E40: 0.00 | F40: 0.00 | G40: 2004.92 | H40: 16305.91 | I40: 0.00
A41: 42120
A42: 1 TICK BOLET 112 S | B42: 1338.79 | C42: 241.02 | D42: 252.05 | G42: 1831.86
A43: 112.00 | B43: 1590.88 | C43: 241.02 | D43: 252.05 | E43: 0.00 | F43: 0.00 | G43: 1831.86 | H43: 18137.77 | I43: 0.00
A44: 42121
A45: 1 TICK BOLET 102 S | B45: 950.84 | C45: 171.18 | D45: 144.70 | G45: 1266.72
A46: 2 TICK FACTU 1 S | B46: 0.85 | C46: 0.15 | D46: 21.43 | G46: 22.43
A47: 103.00 | B47: 1117.82 | C47: 171.33 | D47: 166.13 | E47: 0.00 | F47: 0.00 | G47: 1289.15 | H47: 19426.92 | I47: 0.00
A48: 42122
A49: 1 TICK BOLET 106 S | B49: 1053.24 | C49: 189.60 | D49: 94.13 | G49: 1336.97
A50: 106.00 | B50: 1147.39 | C50: 189.60 | D50: 94.13 | E50: 0.00 | F50: 0.00 | G50: 1336.97 | H50: 20763.89 | I50: 0.00
A51: 42123
A52: 1 TICK BOLET 118 S | B52: 1015.82 | C52: 182.84 | D52: 149.57 | G52: 1348.23
A53: 2 TICK FACTU 2 S | B53: 41.13 | C53: 7.41 | D53: 1.55 | G53: 50.09
A54: 120.00 | B54: 1208.07 | C54: 190.25 | D54: 151.12 | E54: 0.00 | F54: 0.00 | G54: 1398.32 | H54: 22162.21 | I54: 0.00
A55: 42124
A56: NOMBRE DE LOCAL | F56: Pag | G56: ina :2
A57: Usuario :ALVARO | F57: Hora | G57: :12:29:42
A59: 2015-04-01
A60: Fechai : 01/04/2015
A61: Fechaf : 30/04/2015
A62: ------------------------- | B62: --------- | C62: ----------- | D62: ------------- | E62: ----------- | F62: ---------- | G62: ------------ | H62: --------- | I62: -------------------------------------------------------
A63: Fecha Ser Numero | B63: Codigo | C63: Nombre | F63: M To | G63: tal Bo Hora | H63: S V | I63: ended Cajero CajT E MsaPersonas
A64: ------------------------- | B64: --------- | C64: ----------- | D64: ------------- | E64: ----------- | F64: ---------- | G64: ------------ | H64: --------- | I64: -----------------------------------
A65: 1 TICK BOLET 179 S | B65: 1836.34 | C65: 330.54 | D65: 250.84 | G65: 2417.72
A66: 179.00 | B66: 2087.20 | C66: 330.54 | D66: 250.84 | E66: 0.00 | F66: 0.00 | G66: 2417.72 | H66: 24579.93 | I66: 0.00
A67: 1655.00 | B67: 21110.67 | C67: 3469.39 | D67: 1836.76 | E67: 0.00 | F67: 0.00 | G67: 24579.93 | I67: 0.00

Sheet LISTA PRODUCTOS
B1: Productos
A2: 1 | B2: COCA COLA LATA 355 ML
A3: 2 | B3: INCA KOLA LATA 355 ML
A4: 3 | B4: CRUSH LATA 355 ML
A5: 4 | B5: CUSQUEÑA 330ML
A6: 5 | B6: CUSQUEÑA MALTA 330ML
A7: 6 | B7: CUSQUEÑA LATA 355ML
A8: 7 | B8: NECTAR DE MANGO BOLTELLA VIDRIO
A9: 8 | B9: AGUA SAN MATEO SIN GAS 600ML
A10: 9 | B10: AGUA SAN MATEO CON GAS 600ML
A11: 10 | B11: GASEOSA GUARANA LIGHT 500ML
A12: 11 | B12: CUSQUEÑA TRIGO 330ML
A13: 12 | B13: MILTON VARGAS
A14: 13 | B14: Bebida Maltin Power 200ml
A15: 14 | B15: PILSEN TRUJILLO LATA
A16: 15 | B16: PILSEN TRUJILLO SIX PACK LATA
A17: 16 | B17: B.Esp Maltin Power 269ml
A18: 17 | B18: CERVEZA SAN JUAN LATA
A19: 18 | B19: FANTA LATA 355 ML
A20: 19 | B20: FANTA UVA LATA 355 ML
A21: 20 | B21: COCA COLA ZERO LATA 355 ML
A22: 21 | B22: CAFE BRITT PERU VALLE SAGRADO M
A23: 22 | B23: CAFE BRITT PERU PACHAMAMA ORGAN
A24: 23 | B24: MAIZ CANCHA 425 G
A25: 24 | B25: MAIZ CHULLPI 425 G
A26: 25 | B26: CHUÑO BLANCO 425 G
A27: 26 | B27: KIWICHA GRANOLA 300 G
A28: 27 | B28: GOLOSINA CARAMELOS BLANDOS DE C
A29: 28 | B29: AJO MOLIDO ENVASE VIDRIO 200 GR
A30: 29 | B30: CREMA DE ROCOTO ENVASE VIDRIO 2
A31: 30 | B31: Encurtido de Horlasizas envase
A32: 31 | B32: ENCURTIDO DE HORLASIZAS ENVASE
A33: 32 | B33: VLP CHIPS WILD VEGETABLES 113G
A34: 33 | B34: VLP CHIPS ANDEAN NATIVE 142G
A35: 34 | B35: VLP CHIPS ANDEAN NATIVE 42G
A36: 35 | B36: VLP CHIPS ANDEAN PINK SALT 42G
A37: 36 | B37: VLP Chips Anticucho BBQ 42g
A38: 37 | B38: VLP CHIPS CHILIES & LIME 42G
A39: 38 | B39: VLP Chips Andean Pink Salt 142g
A40: 39 | B40: VLP CHIPS ANTICUCHO BBQ 142G
A41: 40 | B41: VLP CHIPS CHILIES & LIME 142G
A42: 41 | B42: VLP Chips Exotic Sweet Potato 4
A43: 42 | B43: VLP CHIPS WILD VEGETABLES 37G
A44: 43 | B44: JUGO COCONA BOTELLA VIDRIO 1L
A45: 44 | B45: Cubito de carne promocion 19.2
A46: 45 | B46: Cubito de gallina promocion 26
A47: 46 | B47: ARROZ EXTRA MEJORADO VALLE DEL
A48: 47 | B48: NATURANDES EMOLIENTE FAMILIAR 1
A49: 48 | B49: NATURANDES LINAZA FAMILIAR 300G
A50: 49 | B50: NATURANDES HARINA DE LINAZA 330
A51: 50 | B51: NATURANDES HARINA DE AJONJOLI 2
A52: 51 | B52: NATURANDES EMOLIENTE 2 EN 1 100
A53: 52 | B53: NATURANDES HOJAS DE ESTEVIA 30G
A54: 53 | B54: NATURANDES HARINA DE QUINUA 200
A55: 54 | B55: NATURANDES HARINA DE KIWICHA 20
A56: 55 | B56: NATURANDES HARINA DE CHIA 200G
A57: 56 | B57: NATURANDES HARINA DE ALGARROBO
A58: 57 | B58: PASTILLAS DE LECHE 100G
A59: 58 | B59: PASTILLAS DE LECHE 150G
A60: 59 | B60: Turron la Iberica 30g
A61: 60 | B61: Trufas surtidas x6
A62: 61 | B62: Pastillas Fondant 100g
A63: 62 | B63: Pastillas Fondant 150g
A64: 63 | B64: TOFFEES DE CHOCOLATE 100G
A65: 64 | B65: Toffees surtidos 100g
A66: 65 | B66: BOMBONES DE CREMAS SURTIDAS 100
A67: 66 | B67: TABL. FONDANT DE LECHE 100G
A68: 67 | B68: TABL. FONDANT CACAO 100G
A69: 68 | B69: TABLETA DE LECHE 40G
A70: 69 | B70: TABL. DE LECHE C/HOJUELAS Y CRO
A71: 70 | B71: Tableta de chocolate Blanco 40g
A72: 71 | B72: TABLETA DE LECHE C/NUECES Y PAS
A73: 72 | B73: TABLETA DE LECHE C/CASTAÑA 40G
A74: 73 | B74: Bombones dulce ilusion 200g
A75: 74 | B75: Ilusion de chocolate 110g
A76: 75 | B76: Pastillas surtidas 180g
A77: 76 | B77: BARRA MILKY LA IBERICA 20G
A78: 77 | B78: Mixtura 220g
A79: 78 | B79: BOMBONES SELECTOS 170G
A80: 79 | B80: Toffees surtidos 300g
A81: 80 | B81: BOMBONES DE CREMAS SURTIDAS 150
A82: 81 | B82: Toffees surtidos 150g
A83: 82 | B83: TOFFEES DE CHOCOLATE 300G
A84: 83 | B84: TOFFEES DE CHOCOLATE 150G
A85: 84 | B85: BARRA MILKY LA IBERICA 50G
A86: 85 | B86: HARINA DE ALCACHOFA 200G
A87: 86 | B87: GALLETA SODA GRANEL GURMET PAQU
A88: 87 | B88: GALLETA RELLENITA COCO 42G
A89: 88 | B89: GALLETA RELLENITA CHOCOLATE 42G
A90: 89 | B90: GALLETA RELLENITA FRESA 42G
A91: 90 | B91: GALLETA GN SANDWICH FRESA X50
A92: 91 | B92: GALLETA GN SANDWICH COCO X50
A93: 92 | B93: GALLETA GN SANDWICH CHOCO X50
A94: 93 | B94: GALLETA RELLENITA LIMON 42G
A95: 94 | B95: GALLETA RELLENITA CHOCOLATE MEN
A96: 95 | B96: Galleta San Jorge Cocona Delu 5
A97: 96 | B97: Galleta San Jorge Fruta Mixta 5
A98: 97 | B98: Galleta San Jorge Municion 55g
A99: 98 | B99: Galleta San Jorge Mini Rondel 6
A100: 99 | B100: GALLETA SAN JORGE NUBBE AGUA 14
A101: 100 | B101: GALLETA VAINILLA FAMILIAR PAQUE
A102: 101 | B102: GALLETA SAN JORGE SODA 40G
A103: 102 | B103: GALLETA CRACKNEL ORIGINALE PAQU
A104: 103 | B104: BARRA MANJAR BLANCO Y CHIRIMOYA
A105: 104 | B105: MANJAR DE CHIRIMOYA 75G
A106: 105 | B106: BARRA MANJARBLANCO Y LUCUMA 250
A107: 106 | B107: MANJAR DE LUCUMA 75G
A108: 107 | B108: MANJAR BLANCO 900G
A109: 108 | B109: MANJARBLANCO 450G
A110: 109 | B110: BARRA MANJARBLANCO 250G
A111: 110 | B111: MANJAR BLANCO 75G
A112: 111 | B112: MANJARBLANCO Y PIÑA 900G
A113: 112 | B113: MANJARBLANCO Y PIÑA 450G
A114: 113 | B114: MANJAR Y PIÑA 75G
A115: 114 | B115: MANJARBLANCO,PIÑA Y MANI 900G
A116: 115 | B116: MANJARBLANCO,PIÑA Y MANI 450G
A117: 116 | B117: MANJAR PIÑA Y MANI 75G
A118: 117 | B118: LATA NATILLA 250 GR
A119: 118 | B119: BARRA MANJARBLANCO Y MARACUYA 2
A120: 119 | B120: MANJAR DE LUCUMA 200 GR
A121: 120 | B121: MANJAR DE CHIRIMOYA 200 GR
A122: 121 | B122: MANJAR DE MARACUYA 75G
A123: 122 | B123: BARRA DE MANJAR ZARZAMORA Y SAU
A124: 123 | B124: CAFÉ ORGANICO MUCCHA 50G
A125: 124 | B125: AGUAYMANTO MUCCHA 50G
A126: 125 | B126: ACEITE DE SACHA INCHI 110ML
A127: 126 | B127: ACEITE DE COCO ORGANICO 140ML
A128: 127 | B128: ACEITE DE COCO ORGANICO 450ML
A129: 128 | B129: LECHE LAIVE LECHE ENTERA EN CA
A130: 129 | B130: LECHE LAIVE SIN LACTOSA EN CAJ
A131: 130 | B131: HARINA QUINUA CON MACA 200G
A132: 131 | B132: GALLETAS ARTESANAS CLASICAS
A133: 132 | B133: Galletas Artesanas Glaseadas
A134: 133 | B134: ACEITE PRIMOR BOTELLA DE PLASTI
A135: 134 | B135: VINAGRE DE MANZANA X 500ML
A136: 135 | B136: ACEITE DE AJONJOLI 200 ML
A137: 136 | B137: ACEITE DE OLIVA EXTRA VIRGEN PR
A138: 137 | B138: ACEITE DE OLIVA EXTRA VIRGEN 25
A139: 138 | B139: ACEITE DE SACHA INCHI EXTRA VIR
A140: 139 | B140: FRASCO DE MAYOLIVA 340G
A141: 140 | B141: ACEITE DE AJONJOLI 500ML
A142: 141 | B142: ACEITE DE OLIVA CLASICO 200ML
A143: 142 | B143: SNACK SACHA PICANTE 50G
A144: 143 | B144: Snack Sacha Inchi Crocante Natu
A145: 144 | B145: Snack Sacha Inchi confitado 100
A146: 145 | B146: ACEITE DE OLIVA CLASICO 450ML
A147: 146 | B147: ACEITE DE CASTAÑA EXTRA VIRGEN
A148: 147 | B148: ACEITE DE SACHA INCHI PREMIUM 2
A149: 148 | B149: ACEITE DE CHIA EXTRA VIRGEN 250
A150: 149 | B150: ACEITE DE OLIVA VIRGEN 200 ML
A151: 150 | B151: ACEITE DE OLIVA EXTRA VIRGEN 20
A152: 151 | B152: ACEITE PURO DE OLIVA BOTELLA VI
A153: 152 | B153: ACEITE DE SACHA INCHI EXTRA VIR
A154: 153 | B154: ALGARROBINA BOTELLA DE PLASTICO
A155: 154 | B155: VINAGRE DE MANZANA BOTELLA PLAS
A156: 155 | B156: MULTIFEMENINA 200G
A157: 156 | B157: HARINA DE KAÑIWA 200G
A158: 157 | B158: Lomo Atun Campomar AC. VG. 170g
A159: 158 | B159: Trozos Atun Campomar 170g
A160: 159 | B160: FILETE DE CABALLA CAMPOMAR
A161: 160 | B161: PERU COLA 500 ML BOTELLA NEGRA
A162: 161 | B162: PERU COLA 500 ML PIÑA
A163: 162 | B163: Nectar de durazno boltella vidr
A164: 163 | B164: NECTAR DE MANGO BOLTELLA VIDRIO
A165: 164 | B165: GASEOSA KOLA REAL NARANJA 500ML
A166: 165 | B166: GASEOSA KOLA REAL PIÑA 500ML
A167: 166 | B167: AGUA CIELO SIN GAS 625ML
A168: 167 | B168: Agua Cielo Sin Gas 2.5L
A169: 168 | B169: AGUA CIELO CON GAS 625ML
A170: 169 | B170: MACA MIX 450G
A171: 170 | B171: TOMATE CHERRY EN ACEITE X 230G
A172: 171 | B172: PESTO DE ESPARRAGO 180G
A173: 172 | B173: PESTO ALCACHOFA 180G
A174: 173 | B174: VINAGRETA DE MANGO 330G
A175: 174 | B175: Pimiento piquillo 220g
A176: 175 | B176: Tapenade de Esp. Ver 295g
A177: 176 | B177: TAPENADE DE PIMIENTO PIQUILLO 2
A178: 177 | B178: MERMELADA DE ALCACHOFA
A179: 178 | B179: AGUAYMANTO EN ALMIBAR 380G
A180: 179 | B180: TAPENADE DE ALCACHOFA 295G
A181: 180 | B181: Dip Alcachofa & Espinaca 255ml
A182: 181 | B182: CHIMICHURRI 250ML
A183: 182 | B183: ALCACHOFA MARINADA CON TALLO 41
A184: 183 | B184: Pesto Genoves 250ml
A185: 184 | B185: ESPARRAGO BLANCO 330G
A186: 185 | B186: PAPAYA ANDINA DE ALMIBAR 450G
A187: 186 | B187: MERMELADA DE MANGO Y PAPAYA 380
A188: 187 | B188: CREMA DE HABAS 180G
A189: 188 | B189: CHOCOLATE SOL DEL CUZCO GRANULA
A190: 189 | B190: CHOCOLATE SOL DEL CUZCO CLAVO C
A191: 190 | B191: Incasur Quinua Perl Organica 25
A192: 191 | B192: QUINUA PERLADA GOURMET 250G
A193: 192 | B193: QUINUA PERLADA SUPERIOR 250G
A194: 193 | B194: Chocolate Sol del Cuzco Moka 22
A195: 194 | B195: Chocolate Sol del Cuzco Dark 22
A196: 195 | B196: QUINUA GRANOLA INCASUR X 250G
A197: 196 | B197: CREMA DE ARVEJAS 170G
A198: 197 | B198: Kiwigen Chocolate 400g
A199: 198 | B199: HOJ. INST. QUINUA INCASUR 3 SAB
A200: 199 | B200: HOJUELA DE QUINUA NATURAL X 250
... 3147 more rows
